Department Family,Entity,Date,Expense Type,Expense Area,Supplier,Transaction Number,Amount
Food Standards Agency,Food Standards Agency,07/04/2010,Stationery,MHS Finance Department,Barclaycard Business Issuing,471532064905474931MAR10,8565.99
Food Standards Agency,Food Standards Agency,07/04/2010,Stationery,MHS Finance Department,Barclaycard Business Issuing,471532064905474931MAR10,29.38
Food Standards Agency,Food Standards Agency,07/04/2010,Meat inspection equipment/consumables,MHS Delivery Planning Unit,Barclaycard Business Issuing,471532064905474931MAR10,20263.18
Food Standards Agency,Food Standards Agency,13/04/2010,Project Programme expenditure,Contaminants Policy & Strategy Unit,C E F A S,SI0004874,43940
Food Standards Agency,Food Standards Agency,13/04/2010,Project Programme expenditure,Contaminants Policy & Strategy Unit,C E F A S,SI0004874,7689.5
Food Standards Agency,Food Standards Agency,13/04/2010,Project Programme expenditure,Contaminants Policy & Strategy Unit,C E F A S,SI0004875,37510.25
Food Standards Agency,Food Standards Agency,13/04/2010,Project Programme expenditure,Contaminants Policy & Strategy Unit,C E F A S,SI0004875,6564.29
Food Standards Agency,Food Standards Agency,13/04/2010,Project Programme expenditure,Contaminants Policy & Strategy Unit,IFR Enterprises Ltd,INV0002213,75598
Food Standards Agency,Food Standards Agency,13/04/2010,Project Programme expenditure,Contaminants Policy & Strategy Unit,IFR Enterprises Ltd,INV0002213,75598
Food Standards Agency,Food Standards Agency,13/04/2010,Project Programme expenditure,Contaminants Policy & Strategy Unit,IFR Enterprises Ltd,INV0002213,75598
Food Standards Agency,Food Standards Agency,13/04/2010,Project Programme expenditure,Contaminants Policy & Strategy Unit,IFR Enterprises Ltd,INV0002213,13229.65
Food Standards Agency,Food Standards Agency,13/04/2010,Project Programme expenditure,Contaminants Policy & Strategy Unit,IFR Enterprises Ltd,INV0002213,13229.65
Food Standards Agency,Food Standards Agency,13/04/2010,Project Programme expenditure,Contaminants Policy & Strategy Unit,IFR Enterprises Ltd,INV0002213,13229.65
Food Standards Agency,Food Standards Agency,15/04/2010,Programme Evidence & Research Expenditure,Nutrition Research & Expert Advice,Kings College London,RGI91002084,68546
Food Standards Agency,Food Standards Agency,19/04/2010,Telecomms-data networks & call charges,Meat Hygiene Service - Information Technology,Equanet,10424449,34146.34
Food Standards Agency,Food Standards Agency,19/04/2010,Telecomms-data networks & call charges,Meat Hygiene Service - Information Technology,Equanet,10424449,5975.61
Food Standards Agency,Food Standards Agency,19/04/2010,Telecomms-data networks & call charges,Meat Hygiene Service - Information Technology,Equanet,10424449,-0.01
Food Standards Agency,Food Standards Agency,19/04/2010,IT hardware/software purchases ,Food Policy Strategy HoD,Equanet,10422275,26147.52
Food Standards Agency,Food Standards Agency,19/04/2010,IT hardware/software purchases ,Food Policy Strategy HoD,Equanet,10422275,4575.82
Food Standards Agency,Food Standards Agency,19/04/2010,IT hardware/software purchases ,Food Policy Strategy HoD,Equanet,10422275,-0.01
Food Standards Agency,Food Standards Agency,19/04/2010,Consultants fees,ISTED HoD Portfolio Management,P A Consulting Group,10084251,50511.05
Food Standards Agency,Food Standards Agency,19/04/2010,Consultants fees,ISTED HoD Portfolio Management,P A Consulting Group,10084251,8839.43
Food Standards Agency,Food Standards Agency,20/04/2010,Agency/temp staff (clerical/admin only),Food Policy Strategy HoD,Parity Resources Ltd,PR00212993,34582.91
Food Standards Agency,Food Standards Agency,20/04/2010,Agency/temp staff (clerical/admin only),Food Policy Strategy HoD,Parity Resources Ltd,PR00212993,6052.01
Food Standards Agency,Food Standards Agency,20/04/2010,Consultants fees,ISTED HoD Portfolio Management,P A Consulting Group,10084702,26928
Food Standards Agency,Food Standards Agency,20/04/2010,Consultants fees,ISTED HoD Portfolio Management,P A Consulting Group,10084702,4712.4
Food Standards Agency,Food Standards Agency,20/04/2010,IT equipment maintenance,Isted Service Delivery,Redsky IT (Hemel) Ltd,I655109,40435
Food Standards Agency,Food Standards Agency,20/04/2010,IT equipment maintenance,Isted Service Delivery,Redsky IT (Hemel) Ltd,I655109,7076.13
Food Standards Agency,Food Standards Agency,22/04/2010,IT Development projects,FSA Board,The Glasgows Group,13641,33634.23
Food Standards Agency,Food Standards Agency,22/04/2010,IT Development projects,FSA Board,The Glasgows Group,13641,5885.99
Food Standards Agency,Food Standards Agency,22/04/2010,Conference and meeting facilities including accommodation,FSA Board,The Glasgows Group,13641,12939.6
Food Standards Agency,Food Standards Agency,22/04/2010,Conference and meeting facilities including accommodation,FSA Board,The Glasgows Group,13641,2264.43
Food Standards Agency,Food Standards Agency,22/04/2010,Programme Evidence & Research Expenditure,Contaminants Policy & Strategy Unit,University Of Newcastle Upon Tyne,9100039333,71945
Food Standards Agency,Food Standards Agency,27/04/2010,Project Programme expenditure,Comms Directors Office,The Glasgows Group,13628,100979.64
Food Standards Agency,Food Standards Agency,27/04/2010,Project Programme expenditure,Comms Directors Office,The Glasgows Group,13628,17671.44
Food Standards Agency,Food Standards Agency,27/04/2010,Project Programme expenditure,Delivery,C E F A S,SI-0004928,50000
Food Standards Agency,Food Standards Agency,27/04/2010,Project Programme expenditure,Diet & Nutrition Surveys,National Centre For Social Research,310275118,797011
Food Standards Agency,Food Standards Agency,27/04/2010,Service charges,Security & Estates,G4s Integrated Services (Uk) Ltd,750549,25557.93
Food Standards Agency,Food Standards Agency,27/04/2010,Service charges,Security & Estates,G4s Integrated Services (Uk) Ltd,750549,14786.07
Food Standards Agency,Food Standards Agency,27/04/2010,Service charges,Security & Estates,G4s Integrated Services (Uk) Ltd,750549,4472.64
Food Standards Agency,Food Standards Agency,27/04/2010,Service charges,Security & Estates,G4s Integrated Services (Uk) Ltd,750549,2745.03
Food Standards Agency,Food Standards Agency,27/04/2010,Service charges,Security & Estates,G4s Integrated Services (Uk) Ltd,750549,2587.56
Food Standards Agency,Food Standards Agency,27/04/2010,Service charges,Security & Estates,G4s Integrated Services (Uk) Ltd,750549,480.38
Food Standards Agency,Food Standards Agency,27/04/2010,Office machinery: hire,Security & Estates,G4s Integrated Services (Uk) Ltd,750549,3244
Food Standards Agency,Food Standards Agency,27/04/2010,Office machinery: hire,Security & Estates,G4s Integrated Services (Uk) Ltd,750549,567.7
Food Standards Agency,Food Standards Agency,27/04/2010,Security,Security & Estates,G4s Integrated Services (Uk) Ltd,750549,21010.48
Food Standards Agency,Food Standards Agency,27/04/2010,Security,Security & Estates,G4s Integrated Services (Uk) Ltd,750549,3676.83
Food Standards Agency,Food Standards Agency,28/04/2010,Project Programme expenditure,Marketing,Coi,715586,79923.56
Food Standards Agency,Food Standards Agency,28/04/2010,Project Programme expenditure,Marketing,Coi,715586,13986.62
Food Standards Agency,Food Standards Agency,28/04/2010,Project Programme expenditure,Marketing,Coi,715586,76.43
Food Standards Agency,Food Standards Agency,28/04/2010,Project Programme expenditure,External Affairs,Coi,714512,28121
Food Standards Agency,Food Standards Agency,28/04/2010,Project Programme expenditure,External Affairs,Coi,714512,4921.18
Food Standards Agency,Food Standards Agency,28/04/2010,Project Programme expenditure,Web & Editorial,Parity Solutions Ltd,899PON,55405
Food Standards Agency,Food Standards Agency,28/04/2010,Project Programme expenditure,Web & Editorial,Parity Solutions Ltd,899PON,9695.88
Food Standards Agency,Food Standards Agency,01/05/2010,Travel UK ,MHS BDU,F C M Travel Solutions,1049601152,2313.9
Food Standards Agency,Food Standards Agency,01/05/2010,Postal charges,MHS BDU,F C M Travel Solutions,1049601152,9.8
Food Standards Agency,Food Standards Agency,01/05/2010,Postal charges,MHS BDU,F C M Travel Solutions,1049601152,1.72
Food Standards Agency,Food Standards Agency,01/05/2010,Travel UK ,MHS Finance Department,F C M Travel Solutions,1049601152,3303.95
Food Standards Agency,Food Standards Agency,01/05/2010,Travel UK ,MHS Finance Department,F C M Travel Solutions,1049601152,186.98
Food Standards Agency,Food Standards Agency,01/05/2010,Postal charges,MHS Finance Department,F C M Travel Solutions,1049601152,19.4
Food Standards Agency,Food Standards Agency,01/05/2010,Postal charges,MHS Finance Department,F C M Travel Solutions,1049601152,3.4
Food Standards Agency,Food Standards Agency,01/05/2010,Travel UK ,MHS Delivery Planning Unit,F C M Travel Solutions,1049601152,7484.1
Food Standards Agency,Food Standards Agency,01/05/2010,Travel UK ,MHS Delivery Planning Unit,F C M Travel Solutions,1049601152,1004.68
Food Standards Agency,Food Standards Agency,01/05/2010,Travel UK ,MHS Delivery Planning Unit,F C M Travel Solutions,1049601152,20.74
Food Standards Agency,Food Standards Agency,01/05/2010,Travel UK ,MHS VetTec,F C M Travel Solutions,1049601152,5583.2
Food Standards Agency,Food Standards Agency,01/05/2010,Travel UK ,MHS VetTec,F C M Travel Solutions,1049601152,219.98
Food Standards Agency,Food Standards Agency,01/05/2010,Postal charges,MHS VetTec,F C M Travel Solutions,1049601152,4.8
Food Standards Agency,Food Standards Agency,01/05/2010,Postal charges,MHS VetTec,F C M Travel Solutions,1049601152,0.84
Food Standards Agency,Food Standards Agency,01/05/2010,Travel UK ,Meat Hygiene Service - Information Technology,F C M Travel Solutions,1049601152,6210.6
Food Standards Agency,Food Standards Agency,01/05/2010,Postal charges,Meat Hygiene Service - Information Technology,F C M Travel Solutions,1049601152,4.8
Food Standards Agency,Food Standards Agency,01/05/2010,Postal charges,Meat Hygiene Service - Information Technology,F C M Travel Solutions,1049601152,0.84
Food Standards Agency,Food Standards Agency,01/05/2010,Travel UK ,Meat Hygiene Service - Human Resources,F C M Travel Solutions,1049601152,8184.6
Food Standards Agency,Food Standards Agency,01/05/2010,Travel UK ,Meat Hygiene Service - Human Resources,F C M Travel Solutions,1049601152,47
Food Standards Agency,Food Standards Agency,01/05/2010,Postal charges,Meat Hygiene Service - Human Resources,F C M Travel Solutions,1049601152,19.6
Food Standards Agency,Food Standards Agency,01/05/2010,Postal charges,Meat Hygiene Service - Human Resources,F C M Travel Solutions,1049601152,3.43
Food Standards Agency,Food Standards Agency,01/05/2010,Postal charges,Meat Hygiene Service - Human Resources,F C M Travel Solutions,1049601152,-0.01
Food Standards Agency,Food Standards Agency,04/05/2010,Project Programme expenditure,Delivery,C E F A S,SI0004853,65173
Food Standards Agency,Food Standards Agency,04/05/2010,Project Programme expenditure,Delivery,C E F A S,SI0004853,11405.28
Food Standards Agency,Food Standards Agency,04/05/2010,Project Programme expenditure,Delivery,C E F A S,SI0004974,115000
Food Standards Agency,Food Standards Agency,04/05/2010,Project Programme expenditure,Delivery,C E F A S,SI0004974,20125
Food Standards Agency,Food Standards Agency,04/05/2010,Project Programme expenditure,Food Production Branch,C E F A S,SI0004891,23550
Food Standards Agency,Food Standards Agency,04/05/2010,Project Programme expenditure,Food Production Branch,C E F A S,SI0004891,4121.25
Food Standards Agency,Food Standards Agency,04/05/2010,Programme Evidence & Research Expenditure,Food Production Branch,C E F A S,SI0004918,93960
Food Standards Agency,Food Standards Agency,04/05/2010,Programme Evidence & Research Expenditure,Food Production Branch,C E F A S,SI0004919,51382
Food Standards Agency,Food Standards Agency,04/05/2010,Programme Evidence & Research Expenditure,Nutrition Research & Expert Advice,University Of Aberdeen,GRSI00024936,30331
Food Standards Agency,Food Standards Agency,04/05/2010,Programme Evidence & Research Expenditure,Nutrition Research & Expert Advice,University Of Newcastle Upon Tyne,9100039299,289000
Food Standards Agency,Food Standards Agency,04/05/2010,Estate maintenance,Isted Strategy & Development,G4s Integrated Services (Uk) Ltd,712215,22409.2
Food Standards Agency,Food Standards Agency,04/05/2010,Estate maintenance,Isted Strategy & Development,G4s Integrated Services (Uk) Ltd,712215,3921.61
Food Standards Agency,Food Standards Agency,06/05/2010,Project Programme expenditure,Contaminants Policy & Strategy Unit,Meteorological Office,I0069652,28719
Food Standards Agency,Food Standards Agency,06/05/2010,Project Programme expenditure,Contaminants Policy & Strategy Unit,Meteorological Office,I0069652,5025.83
Food Standards Agency,Food Standards Agency,06/05/2010,Programme Evidence & Research Expenditure,Nutrition Research & Expert Advice,Kings College London,RGI91001899,135000
Food Standards Agency,Food Standards Agency,06/05/2010,Programme Evidence & Research Expenditure,Nutrition Research & Expert Advice,University Of Aberdeen,GRSI00024910,55522
Food Standards Agency,Food Standards Agency,08/05/2010,Programme Evidence & Research Expenditure,Novel Food Unit,The Royal Holloway Uni Of London,SI5213492,50000
Food Standards Agency,Food Standards Agency,08/05/2010,Programme Evidence & Research Expenditure,Food Production Branch,Campden Technology Limited,20009210,30004
Food Standards Agency,Food Standards Agency,08/05/2010,Programme Evidence & Research Expenditure,Food Production Branch,Campden Technology Limited,20009210,5250.7
Food Standards Agency,Food Standards Agency,08/05/2010,Utilities,Security & Estates,E D F Energy,116,24017.02
Food Standards Agency,Food Standards Agency,08/05/2010,Utilities,Security & Estates,E D F Energy,116,4202.98
Food Standards Agency,Food Standards Agency,10/05/2010,IT Software Licences,Isted Service Delivery,Software Box Ltd,INV42217,100000
Food Standards Agency,Food Standards Agency,10/05/2010,IT Software Licences,Isted Service Delivery,Software Box Ltd,INV42217,17500
Food Standards Agency,Food Standards Agency,10/05/2010,IT equipment maintenance,Isted Service Delivery,Software Box Ltd,INV42217,22000
Food Standards Agency,Food Standards Agency,10/05/2010,IT equipment maintenance,Isted Service Delivery,Software Box Ltd,INV42217,3850
Food Standards Agency,Food Standards Agency,11/05/2010,Project Programme expenditure,Analysis & Research Branch,Wakefield Metropolitan D C,91304628551,24000
Food Standards Agency,Food Standards Agency,11/05/2010,Project Programme expenditure,Analysis & Research Branch,Wakefield Metropolitan D C,91304628551,4200
Food Standards Agency,Food Standards Agency,11/05/2010,Programme Evidence & Research Expenditure,Analysis & Research Branch,LGC Ltd,50011909,28580
Food Standards Agency,Food Standards Agency,11/05/2010,Programme Evidence & Research Expenditure,Analysis & Research Branch,LGC Ltd,50011909,5001.5
Food Standards Agency,Food Standards Agency,11/05/2010,Project Programme expenditure,Delivery,C E F A S,SI0004894,129423
Food Standards Agency,Food Standards Agency,11/05/2010,Project Programme expenditure,Delivery,C E F A S,SI0004894,22649.03
Food Standards Agency,Food Standards Agency,11/05/2010,Project Programme expenditure,Diet & Nutrition Surveys,Medical Research Council,90036162,351572
Food Standards Agency,Food Standards Agency,11/05/2010,Project Programme expenditure,Diet & Nutrition Surveys,Medical Research Council,90036162,61525.1
Food Standards Agency,Food Standards Agency,11/05/2010,Programme Evidence & Research Expenditure,Diet & Nutrition Surveys,Ashwell Associates,9/532,24400
Food Standards Agency,Food Standards Agency,11/05/2010,Programme Evidence & Research Expenditure,Diet & Nutrition Surveys,Ashwell Associates,9/532,24400
Food Standards Agency,Food Standards Agency,11/05/2010,Programme Evidence & Research Expenditure,Diet & Nutrition Surveys,Ashwell Associates,9/532,24400
Food Standards Agency,Food Standards Agency,11/05/2010,Programme Evidence & Research Expenditure,Diet & Nutrition Surveys,Ashwell Associates,9/532,4270
Food Standards Agency,Food Standards Agency,11/05/2010,Programme Evidence & Research Expenditure,Diet & Nutrition Surveys,Ashwell Associates,9/532,4270
Food Standards Agency,Food Standards Agency,11/05/2010,Programme Evidence & Research Expenditure,Diet & Nutrition Surveys,Ashwell Associates,9/532,4270
Food Standards Agency,Food Standards Agency,11/05/2010,ASD support services,Finance Director & Branch,DEFRA,191989,90000
Food Standards Agency,Food Standards Agency,11/05/2010,ASD support services,Finance Director & Branch,DEFRA,191989,15750
Food Standards Agency,Food Standards Agency,12/05/2010,Project Programme expenditure,Incidents & Food Fraud,Bcm Solutions Ltd,10008,37000
Food Standards Agency,Food Standards Agency,12/05/2010,Project Programme expenditure,Incidents & Food Fraud,Bcm Solutions Ltd,10008,6475
Food Standards Agency,Food Standards Agency,12/05/2010,Project Programme expenditure,Microbiological Food Safety Branch,IFR Enterprises Ltd,INV0002221,26031
Food Standards Agency,Food Standards Agency,12/05/2010,Project Programme expenditure,Microbiological Food Safety Branch,IFR Enterprises Ltd,INV0002221,4555.43
Food Standards Agency,Food Standards Agency,12/05/2010,ASD support services,Finance Director & Branch,Atkins Ltd,10000245,24308.94
Food Standards Agency,Food Standards Agency,12/05/2010,ASD support services,Finance Director & Branch,Atkins Ltd,10000245,4254.06
Food Standards Agency,Food Standards Agency,18/05/2010,Programme Evidence & Research Expenditure,Delivery,National Services Scotland,X0021040,33624.59
Food Standards Agency,Food Standards Agency,18/05/2010,Programme Evidence & Research Expenditure,Delivery,National Services Scotland,X0021040,5884.3
Food Standards Agency,Food Standards Agency,18/05/2010,Programme Evidence & Research Expenditure,Chemical Risk Assessment Unit,Imperial College,10073935,31604
Food Standards Agency,Food Standards Agency,18/05/2010,Programme Evidence & Research Expenditure,Contaminants Policy & Strategy Unit,Permier Analytical Services,26083,30945
Food Standards Agency,Food Standards Agency,18/05/2010,Programme Evidence & Research Expenditure,Contaminants Policy & Strategy Unit,Permier Analytical Services,26083,5415.38
Food Standards Agency,Food Standards Agency,18/05/2010,Programme Evidence & Research Expenditure,Nutrition Research & Expert Advice,Queens University Belfast,R23888,55000
Food Standards Agency,Food Standards Agency,18/05/2010,Programme Evidence & Research Expenditure,Nutrition Research & Expert Advice,University Of Leeds,90141737,26005
Food Standards Agency,Food Standards Agency,18/05/2010,Programme Evidence & Research Expenditure,Nutrition Research & Expert Advice,University Of Reading,94952,44667
Food Standards Agency,Food Standards Agency,18/05/2010,Project Programme expenditure,Diet & Nutrition Surveys,Taurus Print & Design Ltd,16487,41360
Food Standards Agency,Food Standards Agency,19/05/2010,Travel UK ,Chief Executive & Private Office,F C M Travel Solutions,1049600949A,868.15
Food Standards Agency,Food Standards Agency,19/05/2010,Travel UK ,Chief Executive & Private Office,F C M Travel Solutions,1049600949A,530.05
Food Standards Agency,Food Standards Agency,19/05/2010,Travel UK ,Chief Executive & Private Office,F C M Travel Solutions,1049600949A,266
Food Standards Agency,Food Standards Agency,19/05/2010,Travel UK ,Chief Executive & Private Office,F C M Travel Solutions,1049600949A,71.7
Food Standards Agency,Food Standards Agency,19/05/2010,Travel UK ,Chief Executive & Private Office,F C M Travel Solutions,1049600949A,10
Food Standards Agency,Food Standards Agency,19/05/2010,Travel UK ,Chief Executive & Private Office,F C M Travel Solutions,1049600949A,1.75
Food Standards Agency,Food Standards Agency,19/05/2010,Travel UK ,Chair & Deputy Chair,F C M Travel Solutions,1049600949A,592.68
Food Standards Agency,Food Standards Agency,19/05/2010,Travel UK ,Chair & Deputy Chair,F C M Travel Solutions,1049600949A,180.62
Food Standards Agency,Food Standards Agency,19/05/2010,Travel UK ,Chair & Deputy Chair,F C M Travel Solutions,1049600949A,5
Food Standards Agency,Food Standards Agency,19/05/2010,Travel UK ,Chair & Deputy Chair,F C M Travel Solutions,1049600949A,0.88
Food Standards Agency,Food Standards Agency,19/05/2010,Travel UK ,FSA Board,F C M Travel Solutions,1049600949A,595.78
Food Standards Agency,Food Standards Agency,19/05/2010,Travel UK ,FSA Board,F C M Travel Solutions,1049600949A,60.49
Food Standards Agency,Food Standards Agency,19/05/2010,Travel UK ,FSA Board,F C M Travel Solutions,1049600949A,5
Food Standards Agency,Food Standards Agency,19/05/2010,Travel UK ,FSA Board,F C M Travel Solutions,1049600949A,0.88
Food Standards Agency,Food Standards Agency,19/05/2010,Travel UK ,Investigations,F C M Travel Solutions,1049600949A,1135.86
Food Standards Agency,Food Standards Agency,19/05/2010,Travel UK ,Investigations,F C M Travel Solutions,1049600949A,74
Food Standards Agency,Food Standards Agency,19/05/2010,Travel UK ,Chief Scientist,F C M Travel Solutions,1049600949A,393.93
Food Standards Agency,Food Standards Agency,19/05/2010,Travel UK ,Chief Scientist,F C M Travel Solutions,1049600949A,37.9
Food Standards Agency,Food Standards Agency,19/05/2010,Travel UK ,Chief Scientist,F C M Travel Solutions,1049600949A,35.3
Food Standards Agency,Food Standards Agency,19/05/2010,Travel UK ,Analysis & Research Branch,F C M Travel Solutions,1049600949A,664.05
Food Standards Agency,Food Standards Agency,19/05/2010,Travel UK ,Analysis & Research Branch,F C M Travel Solutions,1049600949A,451
Food Standards Agency,Food Standards Agency,19/05/2010,Travel UK ,Analysis & Research Branch,F C M Travel Solutions,1049600949A,245.37
Food Standards Agency,Food Standards Agency,19/05/2010,Travel UK ,Comms Directors Office,F C M Travel Solutions,1049600949A,85
Food Standards Agency,Food Standards Agency,19/05/2010,Travel UK ,External Affairs,F C M Travel Solutions,1049600949A,390.8
Food Standards Agency,Food Standards Agency,19/05/2010,Travel UK ,Delivery,F C M Travel Solutions,1049600949A,3704
Food Standards Agency,Food Standards Agency,19/05/2010,Travel UK ,Delivery,F C M Travel Solutions,1049600949A,250
Food Standards Agency,Food Standards Agency,19/05/2010,Travel UK ,Enforcement Policy,F C M Travel Solutions,1049600949A,1122.8
Food Standards Agency,Food Standards Agency,19/05/2010,Travel UK ,Chemical Risk Assessment Unit,F C M Travel Solutions,1049600949A,447.58
Food Standards Agency,Food Standards Agency,19/05/2010,Travel UK ,Chemical Risk Assessment Unit,F C M Travel Solutions,1049600949A,133
Food Standards Agency,Food Standards Agency,19/05/2010,Programme Evidence & Research Expenditure,Chemical Risk Assessment Unit,Food & Environment Research Agency,F0007302,24246
Food Standards Agency,Food Standards Agency,19/05/2010,Programme Evidence & Research Expenditure,Chemical Risk Assessment Unit,Food & Environment Research Agency,F0007302,4243.05
Food Standards Agency,Food Standards Agency,19/05/2010,Travel UK ,Contaminants Policy & Strategy Unit,F C M Travel Solutions,1049600949A,2765.3
Food Standards Agency,Food Standards Agency,19/05/2010,Travel UK ,Contaminants Policy & Strategy Unit,F C M Travel Solutions,1049600949A,471.95
Food Standards Agency,Food Standards Agency,19/05/2010,Travel UK ,Contaminants Policy & Strategy Unit,F C M Travel Solutions,1049600949A,38
Food Standards Agency,Food Standards Agency,19/05/2010,Travel UK ,Contaminants Policy & Strategy Unit,F C M Travel Solutions,1049600949A,5
Food Standards Agency,Food Standards Agency,19/05/2010,Travel UK ,Contaminants Policy & Strategy Unit,F C M Travel Solutions,1049600949A,0.88
Food Standards Agency,Food Standards Agency,19/05/2010,Travel UK ,Hygiene & Microbiology Division HoD,F C M Travel Solutions,1049600949A,6700.18
Food Standards Agency,Food Standards Agency,19/05/2010,Travel UK ,Hygiene & Microbiology Division HoD,F C M Travel Solutions,1049600949A,1172.95
Food Standards Agency,Food Standards Agency,19/05/2010,Travel UK ,Hygiene & Microbiology Division HoD,F C M Travel Solutions,1049600949A,431
Food Standards Agency,Food Standards Agency,19/05/2010,Travel UK ,Hygiene & Microbiology Division HoD,F C M Travel Solutions,1049600949A,380
Food Standards Agency,Food Standards Agency,19/05/2010,Travel UK ,Hygiene & Microbiology Division HoD,F C M Travel Solutions,1049600949A,223.96
Food Standards Agency,Food Standards Agency,19/05/2010,Travel UK ,Food Production Branch,F C M Travel Solutions,1049600949A,755
Food Standards Agency,Food Standards Agency,19/05/2010,Travel UK ,Animal Feed Branch,F C M Travel Solutions,1049600949A,521
Food Standards Agency,Food Standards Agency,19/05/2010,Travel UK ,Nutrition Strategy,F C M Travel Solutions,1049600949A,1400.6
Food Standards Agency,Food Standards Agency,19/05/2010,Travel UK ,Nutrition Strategy,F C M Travel Solutions,1049600949A,5
Food Standards Agency,Food Standards Agency,19/05/2010,Travel UK ,Nutrition Strategy,F C M Travel Solutions,1049600949A,0.88
Food Standards Agency,Food Standards Agency,19/05/2010,Programme Evidence & Research Expenditure,Nutrition Research & Expert Advice,University Of Surrey,85002422,33266.67
Food Standards Agency,Food Standards Agency,19/05/2010,Travel UK ,Nutrition Advice & Behaviour Change,F C M Travel Solutions,1049600949A,350.4
Food Standards Agency,Food Standards Agency,19/05/2010,Travel UK ,Nutrition Advice & Behaviour Change,F C M Travel Solutions,1049600949A,5
Food Standards Agency,Food Standards Agency,19/05/2010,Travel UK ,Nutrition Advice & Behaviour Change,F C M Travel Solutions,1049600949A,0.88
Food Standards Agency,Food Standards Agency,19/05/2010,Travel UK ,Diet & Nutrition Surveys,F C M Travel Solutions,1049600949A,410
Food Standards Agency,Food Standards Agency,19/05/2010,Travel UK ,Nutrition Office,F C M Travel Solutions,1049600949A,112
Food Standards Agency,Food Standards Agency,19/05/2010,Travel UK ,Nutrition Office,F C M Travel Solutions,1049600949A,88.37
Food Standards Agency,Food Standards Agency,19/05/2010,Travel UK ,Labelling Branch,F C M Travel Solutions,1049600949A,998
Food Standards Agency,Food Standards Agency,19/05/2010,Travel UK ,Labelling Branch,F C M Travel Solutions,1049600949A,654
Food Standards Agency,Food Standards Agency,19/05/2010,Travel UK ,Labelling Branch,F C M Travel Solutions,1049600949A,299.6
Food Standards Agency,Food Standards Agency,19/05/2010,Travel UK ,Allergens,F C M Travel Solutions,1049600949A,250
Food Standards Agency,Food Standards Agency,19/05/2010,Travel UK ,Allergens,F C M Travel Solutions,1049600949A,77.2
Food Standards Agency,Food Standards Agency,19/05/2010,Programme Evidence & Research Expenditure,Allergens,Kings College London,RGI91002051,26251.43
Food Standards Agency,Food Standards Agency,19/05/2010,Travel UK ,Food Policy Strategy Hod,F C M Travel Solutions,1049600949A,251
Food Standards Agency,Food Standards Agency,19/05/2010,Travel UK ,Food Policy Strategy Hod,F C M Travel Solutions,1049600949A,161
Food Standards Agency,Food Standards Agency,19/05/2010,Travel UK ,European & International Strategy,F C M Travel Solutions,1049600949A,280
Food Standards Agency,Food Standards Agency,19/05/2010,Travel UK ,Better Regulations & Sustainable Development,F C M Travel Solutions,1049600949A,61.6
Food Standards Agency,Food Standards Agency,19/05/2010,Travel UK ,Food Policy Private Office,F C M Travel Solutions,1049600949A,222.3
Food Standards Agency,Food Standards Agency,19/05/2010,Travel UK ,Food Policy Private Office,F C M Travel Solutions,1049600949A,200.4
Food Standards Agency,Food Standards Agency,19/05/2010,Travel UK ,Food Policy Private Office,F C M Travel Solutions,1049600949A,178.3
Food Standards Agency,Food Standards Agency,19/05/2010,Travel UK ,Food Policy Private Office,F C M Travel Solutions,1049600949A,100.98
Food Standards Agency,Food Standards Agency,19/05/2010,Travel UK ,Finance Director & Branch,F C M Travel Solutions,1049600949A,190
Food Standards Agency,Food Standards Agency,19/05/2010,Travel UK ,Finance Director & Branch,F C M Travel Solutions,1049600949A,108
Food Standards Agency,Food Standards Agency,19/05/2010,Travel UK ,Finance Director & Branch,F C M Travel Solutions,1049600949A,80.99
Food Standards Agency,Food Standards Agency,19/05/2010,Travel UK ,Finance Director & Branch,F C M Travel Solutions,1049600949A,0.02
Food Standards Agency,Food Standards Agency,19/05/2010,Travel UK ,Finance Director & Branch,F C M Travel Solutions,1049600949A,-30
Food Standards Agency,Food Standards Agency,19/05/2010,Travel UK ,Finance Director & Branch,F C M Travel Solutions,1049600949A,-63.7
Food Standards Agency,Food Standards Agency,19/05/2010,Travel UK ,HR,F C M Travel Solutions,1049600949A,1080.5
Food Standards Agency,Food Standards Agency,19/05/2010,Travel UK ,HR,F C M Travel Solutions,1049600949A,863.9
Food Standards Agency,Food Standards Agency,19/05/2010,Travel UK ,HR,F C M Travel Solutions,1049600949A,483.3
Food Standards Agency,Food Standards Agency,19/05/2010,Travel UK ,HR,F C M Travel Solutions,1049600949A,320.3
Food Standards Agency,Food Standards Agency,19/05/2010,Travel UK ,HR,F C M Travel Solutions,1049600949A,5
Food Standards Agency,Food Standards Agency,19/05/2010,Travel UK ,HR,F C M Travel Solutions,1049600949A,0.88
Food Standards Agency,Food Standards Agency,19/05/2010,Travel UK ,HR,F C M Travel Solutions,1049600949A,-282.5
Food Standards Agency,Food Standards Agency,19/05/2010,Travel UK ,Procurement,F C M Travel Solutions,1049600949A,2296
Food Standards Agency,Food Standards Agency,19/05/2010,Travel UK ,Procurement,F C M Travel Solutions,1049600949A,1000.2
Food Standards Agency,Food Standards Agency,19/05/2010,Travel UK ,Procurement,F C M Travel Solutions,1049600949A,206
Food Standards Agency,Food Standards Agency,19/05/2010,Travel UK ,Procurement,F C M Travel Solutions,1049600949A,146
Food Standards Agency,Food Standards Agency,19/05/2010,Travel UK ,ISTED HoD Portfolio Management,F C M Travel Solutions,1049600949A,157
Food Standards Agency,Food Standards Agency,19/05/2010,Travel UK ,ISTED HoD Portfolio Management,F C M Travel Solutions,1049600949A,38
Food Standards Agency,Food Standards Agency,19/05/2010,Travel UK ,Isted Service Delivery,F C M Travel Solutions,1049600949A,1495.2
Food Standards Agency,Food Standards Agency,19/05/2010,Travel UK ,Isted Service Delivery,F C M Travel Solutions,1049600949A,214.8
Food Standards Agency,Food Standards Agency,19/05/2010,Travel UK ,Isted Service Delivery,F C M Travel Solutions,1049600949A,5
Food Standards Agency,Food Standards Agency,19/05/2010,Travel UK ,Isted Service Delivery,F C M Travel Solutions,1049600949A,0.88
Food Standards Agency,Food Standards Agency,19/05/2010,Consultants fees,Isted Service Delivery,Portcullis Computer Security Limited,16686,40927
Food Standards Agency,Food Standards Agency,19/05/2010,Consultants fees,Isted Service Delivery,Portcullis Computer Security Limited,16686,7162.23
Food Standards Agency,Food Standards Agency,19/05/2010,Travel UK ,Isted Strategy & Development,F C M Travel Solutions,1049600949A,5723.3
Food Standards Agency,Food Standards Agency,19/05/2010,Travel UK ,Isted Strategy & Development,F C M Travel Solutions,1049600949A,2390.36
Food Standards Agency,Food Standards Agency,19/05/2010,Travel UK ,Isted Strategy & Development,F C M Travel Solutions,1049600949A,162.6
Food Standards Agency,Food Standards Agency,19/05/2010,Travel UK ,Isted Strategy & Development,F C M Travel Solutions,1049600949A,15
Food Standards Agency,Food Standards Agency,19/05/2010,Travel UK ,Isted Strategy & Development,F C M Travel Solutions,1049600949A,2.63
Food Standards Agency,Food Standards Agency,19/05/2010,Travel UK ,Security & Estates,F C M Travel Solutions,1049600949A,288
Food Standards Agency,Food Standards Agency,19/05/2010,Travel UK ,Security & Estates,F C M Travel Solutions,1049600949A,5
Food Standards Agency,Food Standards Agency,19/05/2010,Travel UK ,Security & Estates,F C M Travel Solutions,1049600949A,0.88
Food Standards Agency,Food Standards Agency,19/05/2010,Travel UK ,Internal Audit,F C M Travel Solutions,1049600949A,241.4
Food Standards Agency,Food Standards Agency,19/05/2010,Travel UK ,Internal Audit,F C M Travel Solutions,1049600949A,5
Food Standards Agency,Food Standards Agency,19/05/2010,Travel UK ,Internal Audit,F C M Travel Solutions,1049600949A,0.88
Food Standards Agency,Food Standards Agency,19/05/2010,Travel UK ,Corporate Services Director & Support,F C M Travel Solutions,1049600949A,178.17
Food Standards Agency,Food Standards Agency,20/05/2010,Project Programme expenditure,Contaminants Policy & Strategy Unit,Food & Environment Research Agency,F0007281,115200
Food Standards Agency,Food Standards Agency,20/05/2010,Project Programme expenditure,Contaminants Policy & Strategy Unit,Food & Environment Research Agency,F0007281,20160
Food Standards Agency,Food Standards Agency,20/05/2010,Programme Evidence & Research Expenditure,Contaminants Policy & Strategy Unit,Food & Environment Research Agency,F0007052,42223
Food Standards Agency,Food Standards Agency,20/05/2010,IT equipment maintenance,Isted Service Delivery,Equanet,10426503,156361
Food Standards Agency,Food Standards Agency,20/05/2010,IT equipment maintenance,Isted Service Delivery,Equanet,10426503,27363.18
Food Standards Agency,Food Standards Agency,20/05/2010,IT equipment maintenance,Isted Service Delivery,Equanet,10426503,-0.01
Food Standards Agency,Food Standards Agency,20/05/2010,IT equipment maintenance,Isted Service Delivery,Equanet,10426503,102391
Food Standards Agency,Food Standards Agency,20/05/2010,IT equipment maintenance,Isted Service Delivery,Equanet,10426503,17918.43
Food Standards Agency,Food Standards Agency,21/05/2010,Travel UK ,MHS BDU,F C M Travel Solutions,1049600974,3107.7
Food Standards Agency,Food Standards Agency,21/05/2010,Travel UK ,MHS BDU,F C M Travel Solutions,1049600974,155.96
Food Standards Agency,Food Standards Agency,21/05/2010,Postal charges,MHS BDU,F C M Travel Solutions,1049600974,15
Food Standards Agency,Food Standards Agency,21/05/2010,Postal charges,MHS BDU,F C M Travel Solutions,1049600974,2.63
Food Standards Agency,Food Standards Agency,21/05/2010,Travel UK ,MHS Finance Department,F C M Travel Solutions,1049600974,11494.65
Food Standards Agency,Food Standards Agency,21/05/2010,Travel UK ,MHS Finance Department,F C M Travel Solutions,1049600974,770.32
Food Standards Agency,Food Standards Agency,21/05/2010,Travel UK ,MHS Finance Department,F C M Travel Solutions,1049600974,318
Food Standards Agency,Food Standards Agency,21/05/2010,Travel UK ,MHS Finance Department,F C M Travel Solutions,1049600974,0.06
Food Standards Agency,Food Standards Agency,21/05/2010,Travel UK ,MHS Delivery Planning Unit,F C M Travel Solutions,1049600974,7208.05
Food Standards Agency,Food Standards Agency,21/05/2010,Travel UK ,MHS Delivery Planning Unit,F C M Travel Solutions,1049600974,1007.36
Food Standards Agency,Food Standards Agency,21/05/2010,Travel UK ,MHS Delivery Planning Unit,F C M Travel Solutions,1049600974,155.43
Food Standards Agency,Food Standards Agency,21/05/2010,Travel UK ,MHS VetTec,F C M Travel Solutions,1049600974,5327.35
Food Standards Agency,Food Standards Agency,21/05/2010,Travel UK ,MHS VetTec,F C M Travel Solutions,1049600974,174.47
Food Standards Agency,Food Standards Agency,21/05/2010,Travel UK ,Meat Hygiene Service - Information Technology,F C M Travel Solutions,1049600974,7530.7
Food Standards Agency,Food Standards Agency,21/05/2010,Travel UK ,Meat Hygiene Service - Information Technology,F C M Travel Solutions,1049600974,122.06
Food Standards Agency,Food Standards Agency,21/05/2010,Travel UK ,Meat Hygiene Service - Human Resources,F C M Travel Solutions,1049600974,16131.7
Food Standards Agency,Food Standards Agency,21/05/2010,Travel UK ,Meat Hygiene Service - Human Resources,F C M Travel Solutions,1049600974,1290.88
Food Standards Agency,Food Standards Agency,21/05/2010,Postal charges,Meat Hygiene Service - Human Resources,F C M Travel Solutions,1049600974,50
Food Standards Agency,Food Standards Agency,21/05/2010,Postal charges,Meat Hygiene Service - Human Resources,F C M Travel Solutions,1049600974,8.75
Food Standards Agency,Food Standards Agency,21/05/2010,Project Programme expenditure,Delivery,Palmer & Randall,2010020,27685
Food Standards Agency,Food Standards Agency,21/05/2010,Project Programme expenditure,Delivery,Palmer & Randall,2010020,4844.88
Food Standards Agency,Food Standards Agency,21/05/2010,Programme Evidence & Research Expenditure,Food Production Branch,The Grimsby Inst Of Further Educ,SIN026657,35198
Food Standards Agency,Food Standards Agency,21/05/2010,Programme Evidence & Research Expenditure,Food Production Branch,The Grimsby Inst Of Further Educ,SIN026657,6159.65
Food Standards Agency,Food Standards Agency,21/05/2010,Programme Evidence & Research Expenditure,Food Production Branch,The Grimsby Inst Of Further Educ,SIN026658,25594
Food Standards Agency,Food Standards Agency,21/05/2010,Programme Evidence & Research Expenditure,Food Production Branch,The Grimsby Inst Of Further Educ,SIN026658,4478.95
Food Standards Agency,Food Standards Agency,22/05/2010,Programme Evidence & Research Expenditure,Chemical Risk Assessment Unit,Food & Environment Research Agency,F0007256,33700
Food Standards Agency,Food Standards Agency,22/05/2010,Programme Evidence & Research Expenditure,Contaminants Policy & Strategy Unit,Food & Environment Research Agency,F0007256,49935.18
Food Standards Agency,Food Standards Agency,22/05/2010,Programme Evidence & Research Expenditure,Contaminants Policy & Strategy Unit,Food & Environment Research Agency,F0007256,18932
Food Standards Agency,Food Standards Agency,22/05/2010,Programme Evidence & Research Expenditure,Contaminants Policy & Strategy Unit,Food & Environment Research Agency,F0007256,12609
Food Standards Agency,Food Standards Agency,22/05/2010,Programme Evidence & Research Expenditure,Contaminants Policy & Strategy Unit,Food & Environment Research Agency,F0007256,3929
Food Standards Agency,Food Standards Agency,22/05/2010,Programme Evidence & Research Expenditure,Contaminants Policy & Strategy Unit,Food & Environment Research Agency,F0007256,3480
Food Standards Agency,Food Standards Agency,22/05/2010,Programme Evidence & Research Expenditure,Contaminants Policy & Strategy Unit,Food & Environment Research Agency,F0007256,2617.6
Food Standards Agency,Food Standards Agency,22/05/2010,Programme Evidence & Research Expenditure,Microbiological Food Safety Branch,Food & Environment Research Agency,F0007256,2125
Food Standards Agency,Food Standards Agency,22/05/2010,Programme Evidence & Research Expenditure,Microbiological Food Safety Branch,Food & Environment Research Agency,F0007256,371.88
Food Standards Agency,Food Standards Agency,22/05/2010,Programme Evidence & Research Expenditure,Food Production Branch,Food & Environment Research Agency,F0007256,59628.2
Food Standards Agency,Food Standards Agency,22/05/2010,Programme Evidence & Research Expenditure,Standards & Authenticity,Food & Environment Research Agency,F0007256,20000
Food Standards Agency,Food Standards Agency,22/05/2010,Programme Evidence & Research Expenditure,Additives,Food & Environment Research Agency,F0007256,13840
Food Standards Agency,Food Standards Agency,25/05/2010,Project Programme expenditure,Press Office,Coi,725152,24700
Food Standards Agency,Food Standards Agency,25/05/2010,Project Programme expenditure,Press Office,Coi,725152,4322.5
Food Standards Agency,Food Standards Agency,25/05/2010,Project Programme expenditure,Nutrition Strategy,Glasgows,13675,24032.52
Food Standards Agency,Food Standards Agency,25/05/2010,Project Programme expenditure,Nutrition Strategy,Glasgows,13675,4205.69
Food Standards Agency,Food Standards Agency,26/05/2010,Project Programme expenditure,Delivery,Coi,714511,22560.34
Food Standards Agency,Food Standards Agency,26/05/2010,Project Programme expenditure,Delivery,Coi,714511,9848.89
Food Standards Agency,Food Standards Agency,26/05/2010,Project Programme expenditure,Delivery,Coi,714511,3948.06
Food Standards Agency,Food Standards Agency,26/05/2010,Project Programme expenditure,Delivery,Coi,714511,-47.92
Food Standards Agency,Food Standards Agency,26/05/2010,Project Programme expenditure,Nutrition Advice & Behaviour Change,Central Office Of Information,715573,56250.39
Food Standards Agency,Food Standards Agency,26/05/2010,Project Programme expenditure,Nutrition Advice & Behaviour Change,Central Office Of Information,715573,9843.82
Food Standards Agency,Food Standards Agency,26/05/2010,Project Programme expenditure,Nutrition Advice & Behaviour Change,Central Office Of Information,715573,61.56
Food Standards Agency,Food Standards Agency,26/05/2010,Programme Evidence & Research Expenditure,Nutrition Advice & Behaviour Change,University Of Newcastle Upon Tyne,9100039950,63265
Food Standards Agency,Food Standards Agency,26/05/2010,Telecomms-data networks & call charges,Isted Service Delivery,Buying Solutions,SINMSD7542,33942
Food Standards Agency,Food Standards Agency,26/05/2010,Telecomms-data networks & call charges,Isted Service Delivery,Buying Solutions,SINMSD7542,5939.85
Food Standards Agency,Food Standards Agency,26/05/2010,Telecomms-data networks & call charges,Isted Service Delivery,Cable & Wireless Communications,UK100420107095,37699.25
Food Standards Agency,Food Standards Agency,26/05/2010,Telecomms-data networks & call charges,Isted Service Delivery,Cable & Wireless Communications,UK100420107095,6597.37
Food Standards Agency,Food Standards Agency,26/05/2010,ASD support services,Isted Strategy & Development,DEFRA,192158,45200
Food Standards Agency,Food Standards Agency,26/05/2010,ASD support services,Isted Strategy & Development,DEFRA,192158,7910
Food Standards Agency,Food Standards Agency,26/05/2010,Utilities,Security & Estates,E D F Energy,117,22370.46
Food Standards Agency,Food Standards Agency,26/05/2010,Utilities,Security & Estates,E D F Energy,117,3914.83
Food Standards Agency,Food Standards Agency,26/05/2010,Utilities,Security & Estates,E D F Energy,117,21.67
Food Standards Agency,Food Standards Agency,27/05/2010,Project Programme expenditure,Web & Editorial,L B I Ltd,301408844,29802.5
Food Standards Agency,Food Standards Agency,27/05/2010,Project Programme expenditure,Web & Editorial,L B I Ltd,301408844,5215.44
Food Standards Agency,Food Standards Agency,27/05/2010,Programme Evidence & Research Expenditure,Food Production Branch,University Of Nottingham,6973725,29224.89
Food Standards Agency,Food Standards Agency,27/05/2010,Telecomms-data networks & call charges,Isted Service Delivery,Cable & Wireless Communications,UK100420107095DUP,37699.25
Food Standards Agency,Food Standards Agency,27/05/2010,Telecomms-data networks & call charges,Isted Service Delivery,Cable & Wireless Communications,UK100420107095DUP,6597.37
Food Standards Agency,Food Standards Agency,02/06/2010,Programme Evidence & Research Expenditure,Chemical Risk Assessment Unit,University Of London,223867,22141.23
Food Standards Agency,Food Standards Agency,02/06/2010,Programme Evidence & Research Expenditure,Chemical Risk Assessment Unit,University Of London,223867,3874.72
Food Standards Agency,Food Standards Agency,02/06/2010,Programme Evidence & Research Expenditure,Microbiological Food Safety Branch,Veterinary Laboratories Agency,4000001289,40000
Food Standards Agency,Food Standards Agency,02/06/2010,Programme Evidence & Research Expenditure,Food Production Branch,Veterinary Laboratories Agency,4000001283,27060.36
Food Standards Agency,Food Standards Agency,02/06/2010,Programme Evidence & Research Expenditure,EU Regulatory Reform Branch,Veterinary Laboratories Agency,4000001322,29806.65
Food Standards Agency,Food Standards Agency,03/06/2010,IT equipment maintenance,Meat Hygiene Service - Information Technology,Contemporary PLC.,35497,24209.74
Food Standards Agency,Food Standards Agency,03/06/2010,IT equipment maintenance,Meat Hygiene Service - Information Technology,Contemporary PLC.,35497,4236.7
Food Standards Agency,Food Standards Agency,07/06/2010,IT Development projects,FSA Board,Glasgows,13717,27017.89
Food Standards Agency,Food Standards Agency,07/06/2010,IT Development projects,FSA Board,Glasgows,13717,4728.13
Food Standards Agency,Food Standards Agency,07/06/2010,Rates/contrib in lieu of rates,Security & Estates,London Borough Of Camden,68351658,157288.8
Food Standards Agency,Food Standards Agency,07/06/2010,Rates/contrib in lieu of rates,Security & Estates,London Borough Of Camden,68351658A,157283
Food Standards Agency,Food Standards Agency,08/06/2010,Project Programme expenditure,Delivery,Doncaster Metropolitan B C,64062462,27555
Food Standards Agency,Food Standards Agency,08/06/2010,Project Programme expenditure,Delivery,Doncaster Metropolitan B C,64062462,4822.13
Food Standards Agency,Food Standards Agency,08/06/2010,Project Programme expenditure,Delivery,Doncaster Metropolitan B C,64062462,3594
Food Standards Agency,Food Standards Agency,08/06/2010,Project Programme expenditure,Delivery,Doncaster Metropolitan B C,64062462,0.01
Food Standards Agency,Food Standards Agency,08/06/2010,Programme Evidence & Research Expenditure,Nutrition Advice & Behaviour Change,Platinum Films,700765,29787.23
Food Standards Agency,Food Standards Agency,08/06/2010,Programme Evidence & Research Expenditure,Nutrition Advice & Behaviour Change,Platinum Films,700765,5212.77
Food Standards Agency,Food Standards Agency,09/06/2010,Travel UK ,Chief Executive & Private Office,F C M Travel Solutions,1049601201C,673
Food Standards Agency,Food Standards Agency,09/06/2010,Travel UK ,Chief Executive & Private Office,F C M Travel Solutions,1049601201C,5
Food Standards Agency,Food Standards Agency,09/06/2010,Travel UK ,Chief Executive & Private Office,F C M Travel Solutions,1049601201C,0.88
Food Standards Agency,Food Standards Agency,09/06/2010,Travel UK ,Chair & Deputy Chair,F C M Travel Solutions,1049601201C,212
Food Standards Agency,Food Standards Agency,09/06/2010,Travel UK ,FSA Board,F C M Travel Solutions,1049601201C,457.6
Food Standards Agency,Food Standards Agency,09/06/2010,Travel UK ,FSA Board,F C M Travel Solutions,1049601201C,306.6
Food Standards Agency,Food Standards Agency,09/06/2010,Travel UK ,Legal  Branch A,F C M Travel Solutions,1049601201C,114.5
Food Standards Agency,Food Standards Agency,09/06/2010,Travel UK ,Investigations,F C M Travel Solutions,1049601201C,160
Food Standards Agency,Food Standards Agency,09/06/2010,Travel UK ,Chief Scientist,F C M Travel Solutions,1049601201C,674.6
Food Standards Agency,Food Standards Agency,09/06/2010,Travel UK ,Chief Scientist,F C M Travel Solutions,1049601201C,569.97
Food Standards Agency,Food Standards Agency,09/06/2010,Travel UK ,Chief Scientist,F C M Travel Solutions,1049601201C,5
Food Standards Agency,Food Standards Agency,09/06/2010,Travel UK ,Chief Scientist,F C M Travel Solutions,1049601201C,0.88
Food Standards Agency,Food Standards Agency,09/06/2010,Travel UK ,Analysis & Research Branch,F C M Travel Solutions,1049601201C,394.9
Food Standards Agency,Food Standards Agency,09/06/2010,Travel UK ,Analysis & Research Branch,F C M Travel Solutions,1049601201C,299
Food Standards Agency,Food Standards Agency,09/06/2010,Travel UK ,Comms Directors Office,F C M Travel Solutions,1049601201C,756.02
Food Standards Agency,Food Standards Agency,09/06/2010,Travel UK ,External Affairs,F C M Travel Solutions,1049601201C,53.5
Food Standards Agency,Food Standards Agency,09/06/2010,Travel UK ,FSA Operations Director & Support,F C M Travel Solutions,1049601201C,865.2
Food Standards Agency,Food Standards Agency,09/06/2010,Travel UK ,FSA Operations Director & Support,F C M Travel Solutions,1049601201C,600
Food Standards Agency,Food Standards Agency,09/06/2010,Travel UK ,FSA Operations Director & Support,F C M Travel Solutions,1049601201C,10
Food Standards Agency,Food Standards Agency,09/06/2010,Travel UK ,FSA Operations Director & Support,F C M Travel Solutions,1049601201C,10
Food Standards Agency,Food Standards Agency,09/06/2010,Travel UK ,FSA Operations Director & Support,F C M Travel Solutions,1049601201C,1.75
Food Standards Agency,Food Standards Agency,09/06/2010,Travel UK ,FSA Operations Director & Support,F C M Travel Solutions,1049601201C,1.75
Food Standards Agency,Food Standards Agency,09/06/2010,Travel UK ,FSA Operations Vet Tec,F C M Travel Solutions,1049601201C,1905.4
Food Standards Agency,Food Standards Agency,09/06/2010,Travel UK ,FSA Operations Vet Tec,F C M Travel Solutions,1049601201C,1315.7
Food Standards Agency,Food Standards Agency,09/06/2010,Travel UK ,FSA Operations Vet Tec,F C M Travel Solutions,1049601201C,208.2
Food Standards Agency,Food Standards Agency,09/06/2010,Travel UK ,FSA Operations Vet Tec,F C M Travel Solutions,1049601201C,5
Food Standards Agency,Food Standards Agency,09/06/2010,Travel UK ,FSA Operations Vet Tec,F C M Travel Solutions,1049601201C,0.88
Food Standards Agency,Food Standards Agency,09/06/2010,Travel UK ,Incidents & Food Fraud,F C M Travel Solutions,1049601201C,682.2
Food Standards Agency,Food Standards Agency,09/06/2010,Travel UK ,Delivery,F C M Travel Solutions,1049601201C,463.14
Food Standards Agency,Food Standards Agency,09/06/2010,Travel UK ,Delivery,F C M Travel Solutions,1049601201C,78.2
Food Standards Agency,Food Standards Agency,09/06/2010,Travel UK ,Enforcement Policy,F C M Travel Solutions,1049601201C,1792.7
Food Standards Agency,Food Standards Agency,09/06/2010,Travel UK ,Enforcement Policy,F C M Travel Solutions,1049601201C,5
Food Standards Agency,Food Standards Agency,09/06/2010,Travel UK ,Enforcement Policy,F C M Travel Solutions,1049601201C,0.88
Food Standards Agency,Food Standards Agency,09/06/2010,Travel UK ,Official Controls & Enforcement Strategy,F C M Travel Solutions,1049601201C,431
Food Standards Agency,Food Standards Agency,09/06/2010,Travel UK ,FSA Ops Delivery Planning Unit,F C M Travel Solutions,1049601201C,4737.93
Food Standards Agency,Food Standards Agency,09/06/2010,Travel UK ,FSA Ops Delivery Planning Unit,F C M Travel Solutions,1049601201C,1863
Food Standards Agency,Food Standards Agency,09/06/2010,Travel UK ,FSA Ops Delivery Planning Unit,F C M Travel Solutions,1049601201C,5
Food Standards Agency,Food Standards Agency,09/06/2010,Travel UK ,FSA Ops Delivery Planning Unit,F C M Travel Solutions,1049601201C,0.88
Food Standards Agency,Food Standards Agency,09/06/2010,Travel UK ,FSA Ops Delivery Planning Unit,F C M Travel Solutions,1049601201C,0.07
Food Standards Agency,Food Standards Agency,09/06/2010,Travel UK ,Contaminants HoD,F C M Travel Solutions,1049601201C,820
Food Standards Agency,Food Standards Agency,09/06/2010,Travel UK ,Contaminants HoD,F C M Travel Solutions,1049601201C,8.2
Food Standards Agency,Food Standards Agency,09/06/2010,Travel UK ,Contaminants HoD,F C M Travel Solutions,1049601201C,5
Food Standards Agency,Food Standards Agency,09/06/2010,Travel UK ,Contaminants HoD,F C M Travel Solutions,1049601201C,0.88
Food Standards Agency,Food Standards Agency,09/06/2010,Travel UK ,Chemical Risk Assessment Unit,F C M Travel Solutions,1049601201C,106.47
Food Standards Agency,Food Standards Agency,09/06/2010,Travel UK ,Chemical Risk Assessment Unit,F C M Travel Solutions,1049601201C,55.6
Food Standards Agency,Food Standards Agency,09/06/2010,Travel UK ,Contaminants Policy & Strategy Unit,F C M Travel Solutions,1049601201C,1793
Food Standards Agency,Food Standards Agency,09/06/2010,Travel UK ,Contaminants Policy & Strategy Unit,F C M Travel Solutions,1049601201C,768.44
Food Standards Agency,Food Standards Agency,09/06/2010,Travel UK ,Contaminants Policy & Strategy Unit,F C M Travel Solutions,1049601201C,5
Food Standards Agency,Food Standards Agency,09/06/2010,Travel UK ,Contaminants Policy & Strategy Unit,F C M Travel Solutions,1049601201C,0.88
Food Standards Agency,Food Standards Agency,09/06/2010,Travel UK ,Novel Food Unit,F C M Travel Solutions,1049601201C,269.43
Food Standards Agency,Food Standards Agency,09/06/2010,Travel UK ,Novel Food Unit,F C M Travel Solutions,1049601201C,214
Food Standards Agency,Food Standards Agency,09/06/2010,Travel UK ,Hygiene & Microbiology Division HoD,F C M Travel Solutions,1049601201C,494.5
Food Standards Agency,Food Standards Agency,09/06/2010,Travel UK ,Hygiene & Microbiology Division HoD,F C M Travel Solutions,1049601201C,277
Food Standards Agency,Food Standards Agency,09/06/2010,Travel UK ,Hygiene & Microbiology Division HoD,F C M Travel Solutions,1049601201C,204.37
Food Standards Agency,Food Standards Agency,09/06/2010,Travel UK ,Microbiological Food Safety Branch,F C M Travel Solutions,1049601201C,277.4
Food Standards Agency,Food Standards Agency,09/06/2010,Travel UK ,Microbiological Food Safety Branch,F C M Travel Solutions,1049601201C,240.85
Food Standards Agency,Food Standards Agency,09/06/2010,Travel UK ,EU Regulatory Reform Branch,F C M Travel Solutions,1049601201C,377.74
Food Standards Agency,Food Standards Agency,09/06/2010,Travel UK ,Animal Feed Branch,F C M Travel Solutions,1049601201C,1074
Food Standards Agency,Food Standards Agency,09/06/2010,Travel UK ,Animal Feed Branch,F C M Travel Solutions,1049601201C,183.87
Food Standards Agency,Food Standards Agency,09/06/2010,Travel UK ,Nutrition Strategy,F C M Travel Solutions,1049601201C,1214.5
Food Standards Agency,Food Standards Agency,09/06/2010,Travel UK ,Nutrition Science Head of Unit,F C M Travel Solutions,1049601201C,330
Food Standards Agency,Food Standards Agency,09/06/2010,Travel UK ,Nutrition Advice & Behaviour Change,F C M Travel Solutions,1049601201C,246.5
Food Standards Agency,Food Standards Agency,09/06/2010,Travel UK ,Nutrition Advice & Behaviour Change,F C M Travel Solutions,1049601201C,10
Food Standards Agency,Food Standards Agency,09/06/2010,Travel UK ,Nutrition Advice & Behaviour Change,F C M Travel Solutions,1049601201C,1.75
Food Standards Agency,Food Standards Agency,09/06/2010,Travel UK ,Nutrition Office,F C M Travel Solutions,1049601201C,121.22
Food Standards Agency,Food Standards Agency,09/06/2010,Travel UK ,Labelling Branch,F C M Travel Solutions,1049601201C,862
Food Standards Agency,Food Standards Agency,09/06/2010,Travel UK ,Standards & Authenticity,F C M Travel Solutions,1049601201C,683
Food Standards Agency,Food Standards Agency,09/06/2010,Travel UK ,Allergens,F C M Travel Solutions,1049601201C,237.7
Food Standards Agency,Food Standards Agency,09/06/2010,Travel UK ,Additives,F C M Travel Solutions,1049601201C,651
Food Standards Agency,Food Standards Agency,09/06/2010,Travel UK ,Food Policy Strategy Hod,F C M Travel Solutions,1049601201C,4278
Food Standards Agency,Food Standards Agency,09/06/2010,Travel UK ,Food Policy Strategy Hod,F C M Travel Solutions,1049601201C,2029.33
Food Standards Agency,Food Standards Agency,09/06/2010,Travel UK ,European & International Strategy,F C M Travel Solutions,1049601201C,310
Food Standards Agency,Food Standards Agency,09/06/2010,Travel UK ,European & International Strategy,F C M Travel Solutions,1049601201C,296.43
Food Standards Agency,Food Standards Agency,09/06/2010,Travel UK ,Planning & Performance,F C M Travel Solutions,1049601201C,133.3
Food Standards Agency,Food Standards Agency,09/06/2010,Travel UK ,Better Regulations & Sustainable Development,F C M Travel Solutions,1049601201C,890.04
Food Standards Agency,Food Standards Agency,09/06/2010,Travel UK ,Better Regulations & Sustainable Development,F C M Travel Solutions,1049601201C,99.7
Food Standards Agency,Food Standards Agency,09/06/2010,Travel UK ,Finance Director & Branch,F C M Travel Solutions,1049601201C,3399.85
Food Standards Agency,Food Standards Agency,09/06/2010,Travel UK ,Finance Director & Branch,F C M Travel Solutions,1049601201C,1147.2
Food Standards Agency,Food Standards Agency,09/06/2010,Travel UK ,Finance Director & Branch,F C M Travel Solutions,1049601201C,309.96
Food Standards Agency,Food Standards Agency,09/06/2010,Travel UK ,Finance Director & Branch,F C M Travel Solutions,1049601201C,20
Food Standards Agency,Food Standards Agency,09/06/2010,Travel UK ,Finance Director & Branch,F C M Travel Solutions,1049601201C,5
Food Standards Agency,Food Standards Agency,09/06/2010,Travel UK ,Finance Director & Branch,F C M Travel Solutions,1049601201C,3.5
Food Standards Agency,Food Standards Agency,09/06/2010,Travel UK ,Finance Director & Branch,F C M Travel Solutions,1049601201C,0.88
Food Standards Agency,Food Standards Agency,09/06/2010,Travel UK ,HR,F C M Travel Solutions,1049601201C,11986.8
Food Standards Agency,Food Standards Agency,09/06/2010,Travel UK ,HR,F C M Travel Solutions,1049601201C,561.86
Food Standards Agency,Food Standards Agency,09/06/2010,Travel UK ,HR,F C M Travel Solutions,1049601201C,400
Food Standards Agency,Food Standards Agency,09/06/2010,Travel UK ,HR,F C M Travel Solutions,1049601201C,20
Food Standards Agency,Food Standards Agency,09/06/2010,Travel UK ,HR,F C M Travel Solutions,1049601201C,3.5
Food Standards Agency,Food Standards Agency,09/06/2010,Travel UK ,Procurement,F C M Travel Solutions,1049601201C,1778.3
Food Standards Agency,Food Standards Agency,09/06/2010,Travel UK ,Procurement,F C M Travel Solutions,1049601201C,5
Food Standards Agency,Food Standards Agency,09/06/2010,Travel UK ,Procurement,F C M Travel Solutions,1049601201C,0.88
Food Standards Agency,Food Standards Agency,09/06/2010,Travel UK ,ISTED HoD Portfolio Management,F C M Travel Solutions,1049601201C,8063.2
Food Standards Agency,Food Standards Agency,09/06/2010,Travel UK ,ISTED HoD Portfolio Management,F C M Travel Solutions,1049601201C,205.89
Food Standards Agency,Food Standards Agency,09/06/2010,Travel UK ,ISTED HoD Portfolio Management,F C M Travel Solutions,1049601201C,5
Food Standards Agency,Food Standards Agency,09/06/2010,Travel UK ,ISTED HoD Portfolio Management,F C M Travel Solutions,1049601201C,0.88
Food Standards Agency,Food Standards Agency,09/06/2010,Travel UK ,Isted Service Delivery,F C M Travel Solutions,1049601201C,104
Food Standards Agency,Food Standards Agency,09/06/2010,Travel UK ,Isted Strategy & Development,F C M Travel Solutions,1049601201C,3400.1
Food Standards Agency,Food Standards Agency,09/06/2010,Travel UK ,Isted Strategy & Development,F C M Travel Solutions,1049601201C,100
Food Standards Agency,Food Standards Agency,09/06/2010,Travel UK ,Isted Strategy & Development,F C M Travel Solutions,1049601201C,-576.04
Food Standards Agency,Food Standards Agency,09/06/2010,Travel UK ,Security & Estates,F C M Travel Solutions,1049601201C,200
Food Standards Agency,Food Standards Agency,09/06/2010,Travel UK ,ISTED Information & Knowledge Management,F C M Travel Solutions,1049601201C,215.2
Food Standards Agency,Food Standards Agency,09/06/2010,Travel UK ,Internal Audit,F C M Travel Solutions,1049601201C,634
Food Standards Agency,Food Standards Agency,09/06/2010,Travel UK ,Internal Audit,F C M Travel Solutions,1049601201C,5
Food Standards Agency,Food Standards Agency,09/06/2010,Travel UK ,Internal Audit,F C M Travel Solutions,1049601201C,0.88
Food Standards Agency,Food Standards Agency,09/06/2010,Travel UK ,Corporate Services Director & Support,F C M Travel Solutions,1049601201C,433.4
Food Standards Agency,Food Standards Agency,11/06/2010,Project Programme expenditure,Contaminants Policy & Strategy Unit,Veterinary Laboratories Agency,4000001347,74956.58
Food Standards Agency,Food Standards Agency,11/06/2010,Project Programme expenditure,Contaminants Policy & Strategy Unit,Veterinary Laboratories Agency,4000001347,13117.4
Food Standards Agency,Food Standards Agency,11/06/2010,Utilities,Security & Estates,E D F Energy,118,23077.75
Food Standards Agency,Food Standards Agency,11/06/2010,Utilities,Security & Estates,E D F Energy,118,4038.61
Food Standards Agency,Food Standards Agency,11/06/2010,Utilities,Security & Estates,E D F Energy,118,71.49
Food Standards Agency,Food Standards Agency,14/06/2010,Early Retirements,Meat Hygiene Service - Human Resources,London Pensions Fund Authority,212,112916.16
Food Standards Agency,Food Standards Agency,14/06/2010,Project Programme expenditure,Delivery,Coi,725654,30776.11
Food Standards Agency,Food Standards Agency,14/06/2010,Project Programme expenditure,Delivery,Coi,725654,5385.82
Food Standards Agency,Food Standards Agency,14/06/2010,Project Programme expenditure,Nutrition Strategy,Glasgows,13624,22152.5
Food Standards Agency,Food Standards Agency,14/06/2010,Project Programme expenditure,Nutrition Strategy,Glasgows,13624,3876.69
Food Standards Agency,Food Standards Agency,14/06/2010,Programme Evidence & Research Expenditure,Nutrition Research & Expert Advice,London School Of Hygiene & TM,50017472,26804
Food Standards Agency,Food Standards Agency,15/06/2010,Travel UK ,MHS BDU,F C M Travel Solutions,1049600719,4059.3
Food Standards Agency,Food Standards Agency,15/06/2010,Postal charges,MHS BDU,F C M Travel Solutions,1049600719,10
Food Standards Agency,Food Standards Agency,15/06/2010,Postal charges,MHS BDU,F C M Travel Solutions,1049600719,1.75
Food Standards Agency,Food Standards Agency,15/06/2010,Travel UK ,MHS Finance Department,F C M Travel Solutions,1049600719,6774.6
Food Standards Agency,Food Standards Agency,15/06/2010,Postal charges,MHS Finance Department,F C M Travel Solutions,1049600719,30
Food Standards Agency,Food Standards Agency,15/06/2010,Postal charges,MHS Finance Department,F C M Travel Solutions,1049600719,5.25
Food Standards Agency,Food Standards Agency,15/06/2010,Travel UK ,MHS Delivery Planning Unit,F C M Travel Solutions,1049600719,4783.3
Food Standards Agency,Food Standards Agency,15/06/2010,Travel UK ,MHS Delivery Planning Unit,F C M Travel Solutions,1049600719,1549.2
Food Standards Agency,Food Standards Agency,15/06/2010,Travel UK ,MHS Delivery Planning Unit,F C M Travel Solutions,1049600719,83.18
Food Standards Agency,Food Standards Agency,15/06/2010,Travel UK ,MHS Delivery Planning Unit,F C M Travel Solutions,1049600719,2
Food Standards Agency,Food Standards Agency,15/06/2010,Travel UK ,MHS Delivery Planning Unit,F C M Travel Solutions,1049600719,0.35
Food Standards Agency,Food Standards Agency,15/06/2010,Travel UK ,MHS VetTec,F C M Travel Solutions,1049600719,5800.3
Food Standards Agency,Food Standards Agency,15/06/2010,Travel UK ,MHS VetTec,F C M Travel Solutions,1049600719,188.1
Food Standards Agency,Food Standards Agency,15/06/2010,Travel UK ,Meat Hygiene Service - Information Technology,F C M Travel Solutions,1049600719,4843.8
Food Standards Agency,Food Standards Agency,15/06/2010,Travel UK ,Meat Hygiene Service - Information Technology,F C M Travel Solutions,1049600719,1278
Food Standards Agency,Food Standards Agency,15/06/2010,Travel UK ,Meat Hygiene Service - Human Resources,F C M Travel Solutions,1049600719,13757.2
Food Standards Agency,Food Standards Agency,15/06/2010,Travel UK ,Meat Hygiene Service - Human Resources,F C M Travel Solutions,1049600719,408.39
Food Standards Agency,Food Standards Agency,15/06/2010,Postal charges,Meat Hygiene Service - Human Resources,F C M Travel Solutions,1049600719,25
Food Standards Agency,Food Standards Agency,15/06/2010,Postal charges,Meat Hygiene Service - Human Resources,F C M Travel Solutions,1049600719,4.38
Food Standards Agency,Food Standards Agency,15/06/2010,Postal charges,Meat Hygiene Service - Human Resources,F C M Travel Solutions,1049600719,0.07
Food Standards Agency,Food Standards Agency,15/06/2010,Travel UK ,Food Policy Strategy HoD,F C M Travel Solutions,1049600719,11180.13
Food Standards Agency,Food Standards Agency,15/06/2010,Travel UK ,Food Policy Strategy HoD,F C M Travel Solutions,1049600719,10
Food Standards Agency,Food Standards Agency,15/06/2010,Travel UK ,Food Policy Strategy HoD,F C M Travel Solutions,1049600719,1.75
Food Standards Agency,Food Standards Agency,15/06/2010,Travel UK ,Food Policy Strategy HoD,F C M Travel Solutions,1049600719,0.01
Food Standards Agency,Food Standards Agency,16/06/2010,Project Programme expenditure,Delivery,Coi,725325,26688.07
Food Standards Agency,Food Standards Agency,16/06/2010,Project Programme expenditure,Delivery,Coi,725325,15078.34
Food Standards Agency,Food Standards Agency,16/06/2010,Project Programme expenditure,Delivery,Coi,725325,4670.41
Food Standards Agency,Food Standards Agency,17/06/2010,Project Programme expenditure,Web & Editorial,L B I Ltd,301409018,26138.75
Food Standards Agency,Food Standards Agency,17/06/2010,Project Programme expenditure,Web & Editorial,L B I Ltd,301409018,4574.28
Food Standards Agency,Food Standards Agency,17/06/2010,Programme Evidence & Research Expenditure,Contaminants Policy & Strategy Unit,Food & Environment Research Agency,F0008276,90000
Food Standards Agency,Food Standards Agency,17/06/2010,Project Programme expenditure,Foodborne Diseases Branch,Park Plaza Riverbank,365691,30932.49
Food Standards Agency,Food Standards Agency,17/06/2010,Project Programme expenditure,Foodborne Diseases Branch,Park Plaza Riverbank,365691,5413.19
Food Standards Agency,Food Standards Agency,17/06/2010,Project Programme expenditure,Foodborne Diseases Branch,Park Plaza Riverbank,365691,1490
Food Standards Agency,Food Standards Agency,17/06/2010,Programme Evidence & Research Expenditure,Nutrition Research & Expert Advice,Cranfield University,1281160,41083
Food Standards Agency,Food Standards Agency,17/06/2010,Telecomms-data networks & call charges,Isted Service Delivery,KCOM Group Plc (Affiniti),INV0180043,25168.17
Food Standards Agency,Food Standards Agency,17/06/2010,Telecomms-data networks & call charges,Isted Service Delivery,KCOM Group Plc (Affiniti),INV0180043,4404.43
Food Standards Agency,Food Standards Agency,18/06/2010,Project Programme expenditure,Delivery,Food Northwest Ltd,3164,21706.2
Food Standards Agency,Food Standards Agency,18/06/2010,Project Programme expenditure,Delivery,Food Northwest Ltd,3164,11435.18
Food Standards Agency,Food Standards Agency,18/06/2010,Project Programme expenditure,Delivery,Food Northwest Ltd,3164,2001.16
Food Standards Agency,Food Standards Agency,18/06/2010,Project Programme expenditure,Delivery,Food Northwest Ltd,3164,-0.01
Food Standards Agency,Food Standards Agency,19/06/2010,Service charges,Security & Estates,G4s Integrated Services (Uk) Ltd,712796,25557.93
Food Standards Agency,Food Standards Agency,19/06/2010,Service charges,Security & Estates,G4s Integrated Services (Uk) Ltd,712796,14786.07
Food Standards Agency,Food Standards Agency,19/06/2010,Service charges,Security & Estates,G4s Integrated Services (Uk) Ltd,712796,2745.03
Food Standards Agency,Food Standards Agency,19/06/2010,Office machinery: hire,Security & Estates,G4s Integrated Services (Uk) Ltd,712796,3244
Food Standards Agency,Food Standards Agency,19/06/2010,Security,Security & Estates,G4s Integrated Services (Uk) Ltd,712796,21010.48
Food Standards Agency,Food Standards Agency,23/06/2010,Programme Evidence & Research Expenditure,Food Production Branch,University Of Edinburgh,Z0019038,34781
Food Standards Agency,Food Standards Agency,23/06/2010,Programme Evidence & Research Expenditure,Food Production Branch,University Of Edinburgh,Z0019322,33548.4
Food Standards Agency,Food Standards Agency,24/06/2010,Office machinery: hire,MHS Finance Department,The Danwood Group Ltd,2479344,21635
Food Standards Agency,Food Standards Agency,24/06/2010,Office machinery: hire,MHS Finance Department,The Danwood Group Ltd,2479344,3786.13
Food Standards Agency,Food Standards Agency,24/06/2010,Project Programme expenditure,Contaminants Policy & Strategy Unit,Food & Environment Research Agency,F0008946,31685.46
Food Standards Agency,Food Standards Agency,24/06/2010,Project Programme expenditure,Contaminants Policy & Strategy Unit,Food & Environment Research Agency,F0008948,25218.28
Food Standards Agency,Food Standards Agency,24/06/2010,Programme Evidence & Research Expenditure,Food Production Branch,Veterinary Laboratories Agency,4000001364,25263.6
Food Standards Agency,Food Standards Agency,28/06/2010,Project Programme expenditure,Contaminants Policy & Strategy Unit,C E F A S,8000162,38636
Food Standards Agency,Food Standards Agency,28/06/2010,Project Programme expenditure,Contaminants Policy & Strategy Unit,C E F A S,8000162,6761.3
Food Standards Agency,Food Standards Agency,28/06/2010,Programme Evidence & Research Expenditure,Nutrition Research & Expert Advice,Kings College London,RGI91002736,60224
Food Standards Agency,Food Standards Agency,28/06/2010,Programme Evidence & Research Expenditure,Nutrition Research & Expert Advice,University Of Aberdeen,GRSI00025231,26071
Food Standards Agency,Food Standards Agency,28/06/2010,Service charges,Security & Estates,G4s Integrated Services (Uk) Ltd,712540,25557.93
Food Standards Agency,Food Standards Agency,28/06/2010,Service charges,Security & Estates,G4s Integrated Services (Uk) Ltd,712540,14786.07
Food Standards Agency,Food Standards Agency,28/06/2010,Service charges,Security & Estates,G4s Integrated Services (Uk) Ltd,712540,2745.03
Food Standards Agency,Food Standards Agency,28/06/2010,Office machinery: hire,Security & Estates,G4s Integrated Services (Uk) Ltd,712540,3244
Food Standards Agency,Food Standards Agency,28/06/2010,Security,Security & Estates,G4s Integrated Services (Uk) Ltd,712540,21010.48
Food Standards Agency,Food Standards Agency,29/06/2010,Programme Evidence & Research Expenditure,Food Production Branch,University Of Bristol,RES30088,38629.2
Food Standards Agency,Food Standards Agency,01/07/2010,Project Programme expenditure,Contaminants Policy & Strategy Unit,C E F A S,8000167,205961
Food Standards Agency,Food Standards Agency,01/07/2010,Programme Evidence & Research Expenditure,Nutrition Advice & Behaviour Change,University Of Glasgow,130008477,132170
Food Standards Agency,Food Standards Agency,01/07/2010,Programme Evidence & Research Expenditure,Allergens,University Of Southampton,44057302,79940.01
Food Standards Agency,Food Standards Agency,01/07/2010,Telecomms-data networks & call charges,Isted Service Delivery,Buying Solutions,SINMSD7642,71333.65
Food Standards Agency,Food Standards Agency,01/07/2010,Telecomms-data networks & call charges,Isted Service Delivery,Buying Solutions,SINMSD7642,12483.39
Food Standards Agency,Food Standards Agency,01/07/2010,Rates/contrib in lieu of rates,Security & Estates,London Borough Of Camden,68351658JUL10,157283
Food Standards Agency,Food Standards Agency,06/07/2010,Project Programme expenditure,Chief Scientist,University Of East Anglia,468496,26612
Food Standards Agency,Food Standards Agency,06/07/2010,Programme Evidence & Research Expenditure,Chemical Risk Assessment Unit,University Of Hull,SOIN37243,251682
Food Standards Agency,Food Standards Agency,06/07/2010,Programme Evidence & Research Expenditure,Chemical Risk Assessment Unit,University Of Hull,SOIN37243,251682
Food Standards Agency,Food Standards Agency,06/07/2010,Programme Evidence & Research Expenditure,Chemical Risk Assessment Unit,University Of Hull,SOIN37243,251682
Food Standards Agency,Food Standards Agency,06/07/2010,Programme Evidence & Research Expenditure,Nutrition Research & Expert Advice,IFR Enterprises Ltd,CRN0000149,-9179.63
Food Standards Agency,Food Standards Agency,06/07/2010,Programme Evidence & Research Expenditure,Nutrition Research & Expert Advice,IFR Enterprises Ltd,CRN0000149,-52455
Food Standards Agency,Food Standards Agency,06/07/2010,Programme Evidence & Research Expenditure,Nutrition Research & Expert Advice,IFR Enterprises Ltd,INV0002151,52455
Food Standards Agency,Food Standards Agency,06/07/2010,Programme Evidence & Research Expenditure,Nutrition Research & Expert Advice,IFR Enterprises Ltd,INV0002151,9179.63
Food Standards Agency,Food Standards Agency,06/07/2010,Programme Evidence & Research Expenditure,Nutrition Research & Expert Advice,Newcastle University,90056477,-92022
Food Standards Agency,Food Standards Agency,06/07/2010,Programme Evidence & Research Expenditure,Nutrition Research & Expert Advice,Newcastle University,9100038423,92022
Food Standards Agency,Food Standards Agency,06/07/2010,IT equipment maintenance,Isted Service Delivery,Equanet,10516980,49421
Food Standards Agency,Food Standards Agency,06/07/2010,IT equipment maintenance,Isted Service Delivery,Equanet,10516980,8648.68
Food Standards Agency,Food Standards Agency,06/07/2010,IT equipment maintenance,Isted Service Delivery,Equanet,10516980,-0.01
Food Standards Agency,Food Standards Agency,07/07/2010,Project Programme expenditure,Contaminants Policy & Strategy Unit,C E F A S,8000165,65854.5
Food Standards Agency,Food Standards Agency,07/07/2010,Programme Evidence & Research Expenditure,Nutrition Research & Expert Advice,Queens University Belfast,80000251,47763
Food Standards Agency,Food Standards Agency,07/07/2010,Project Programme expenditure,Diet & Nutrition Surveys,National Centre For Social Research,610275201,1159989
Food Standards Agency,Food Standards Agency,07/07/2010,Rent & management charges - AVH,Security & Estates,Dekay Management Ltd,1068,1243845.35
Food Standards Agency,Food Standards Agency,07/07/2010,Rent & management charges - AVH,Security & Estates,Dekay Management Ltd,1068,217672.94
Food Standards Agency,Food Standards Agency,08/07/2010,Project Programme expenditure,Delivery,C E F A S,8000124,147289.77
Food Standards Agency,Food Standards Agency,08/07/2010,Project Programme expenditure,Delivery,C E F A S,8000124,25775.71
Food Standards Agency,Food Standards Agency,12/07/2010,Programme Evidence & Research Expenditure,Nutrition Research & Expert Advice,University Of Aberdeen,GRSI00025554,30953
Food Standards Agency,Food Standards Agency,12/07/2010,Programme Evidence & Research Expenditure,Nutrition Research & Expert Advice,University Of Aberdeen,GRSI00025576,41292
Food Standards Agency,Food Standards Agency,12/07/2010,Programme Evidence & Research Expenditure,Nutrition Research & Expert Advice,University Of Southampton,44058467,27051
Food Standards Agency,Food Standards Agency,12/07/2010,IT equipment maintenance,Isted Service Delivery,Contemporary PLC.,35497,24209.74
Food Standards Agency,Food Standards Agency,12/07/2010,IT equipment maintenance,Isted Service Delivery,Contemporary PLC.,35497,4236.7
Food Standards Agency,Food Standards Agency,13/07/2010,Telecomms-data networks & call charges,Isted Service Delivery,Equanet,10544377,38500
Food Standards Agency,Food Standards Agency,13/07/2010,Telecomms-data networks & call charges,Isted Service Delivery,Equanet,10544377,6737.5
Food Standards Agency,Food Standards Agency,13/07/2010,Telecomms-data networks & call charges,Isted Service Delivery,Equanet,10544378,22000
Food Standards Agency,Food Standards Agency,13/07/2010,Telecomms-data networks & call charges,Isted Service Delivery,Equanet,10544378,3850
Food Standards Agency,Food Standards Agency,13/07/2010,IT Software Licences,Isted Service Delivery,Trustmarque Solutions Ltd,2130607,189262.14
Food Standards Agency,Food Standards Agency,13/07/2010,IT Software Licences,Isted Service Delivery,Trustmarque Solutions Ltd,2130607,33120.87
Food Standards Agency,Food Standards Agency,13/07/2010,IT Software Licences,Isted Service Delivery,Trustmarque Solutions Ltd,2130607,0.01
Food Standards Agency,Food Standards Agency,13/07/2010,IT equipment maintenance,Isted Service Delivery,Equanet,10545751,156361
Food Standards Agency,Food Standards Agency,13/07/2010,IT equipment maintenance,Isted Service Delivery,Equanet,10545751,27363.18
Food Standards Agency,Food Standards Agency,13/07/2010,IT equipment maintenance,Isted Service Delivery,Equanet,10545751,-0.01
Food Standards Agency,Food Standards Agency,13/07/2010,IT equipment maintenance,Isted Service Delivery,Equanet,10545751,102391
Food Standards Agency,Food Standards Agency,13/07/2010,IT equipment maintenance,Isted Service Delivery,Equanet,10545751,17918.43
Food Standards Agency,Food Standards Agency,13/07/2010,Canteen charges,Security & Estates,G4s Integrated Services (Uk) Ltd,712878,23684.24
Food Standards Agency,Food Standards Agency,14/07/2010,Programme Evidence & Research Expenditure,Chemical Risk Assessment Unit,University Of Hull,SOIN38595,32770
Food Standards Agency,Food Standards Agency,14/07/2010,Programme Evidence & Research Expenditure,Contaminants Policy & Strategy Unit,University Of Hull,SOIN38596,44820
Food Standards Agency,Food Standards Agency,15/07/2010,Project Programme expenditure,Marketing,Coi,725168,47125
Food Standards Agency,Food Standards Agency,15/07/2010,Project Programme expenditure,Marketing,Coi,725168,42
Food Standards Agency,Food Standards Agency,15/07/2010,Project Programme expenditure,Contaminants Policy & Strategy Unit,DSTL,MST002724,40000
Food Standards Agency,Food Standards Agency,15/07/2010,Utilities,Security & Estates,E D F Energy,119,24606.53
Food Standards Agency,Food Standards Agency,15/07/2010,Utilities,Security & Estates,E D F Energy,119,4306.14
Food Standards Agency,Food Standards Agency,15/07/2010,Utilities,Security & Estates,E D F Energy,119,5.05
Food Standards Agency,Food Standards Agency,20/07/2010,Project Programme expenditure,Delivery,Coi,726280,17951.82
Food Standards Agency,Food Standards Agency,20/07/2010,Project Programme expenditure,Delivery,Coi,726280,8229.12
Food Standards Agency,Food Standards Agency,20/07/2010,Project Programme expenditure,Delivery,Coi,726280,-26.71
Food Standards Agency,Food Standards Agency,20/07/2010,Service charges,Security & Estates,G4s Integrated Services (Uk) Ltd,713010,25557.93
Food Standards Agency,Food Standards Agency,20/07/2010,Service charges,Security & Estates,G4s Integrated Services (Uk) Ltd,713010,14786.07
Food Standards Agency,Food Standards Agency,20/07/2010,Service charges,Security & Estates,G4s Integrated Services (Uk) Ltd,713010,2745.03
Food Standards Agency,Food Standards Agency,20/07/2010,Office machinery: hire,Security & Estates,G4s Integrated Services (Uk) Ltd,713010,3244
Food Standards Agency,Food Standards Agency,20/07/2010,Security,Security & Estates,G4s Integrated Services (Uk) Ltd,713010,21010.48
Food Standards Agency,Food Standards Agency,22/07/2010,Programme Evidence & Research Expenditure,Nutrition Advice & Behaviour Change,Durham University,217163,84319
Food Standards Agency,Food Standards Agency,22/07/2010,Subsistence UK,Food Policy Strategy Hod,Capita Business Travel Ltd,LI175386,38748.69
Food Standards Agency,Food Standards Agency,22/07/2010,Subsistence UK,Food Policy Strategy Hod,Capita Business Travel Ltd,LI175386,34750.66
Food Standards Agency,Food Standards Agency,22/07/2010,Subsistence UK,Food Policy Strategy Hod,Capita Business Travel Ltd,LI175386,6081.37
Food Standards Agency,Food Standards Agency,22/07/2010,Subsistence UK,Food Policy Strategy Hod,Capita Business Travel Ltd,LI178252,64597.59
Food Standards Agency,Food Standards Agency,22/07/2010,Subsistence UK,Food Policy Strategy Hod,Capita Business Travel Ltd,LI178252,8901.76
Food Standards Agency,Food Standards Agency,22/07/2010,Subsistence UK,Food Policy Strategy Hod,Capita Business Travel Ltd,LI178252,1557.81
Food Standards Agency,Food Standards Agency,22/07/2010,Subsistence UK,Food Policy Strategy Hod,Capita Business Travel Ltd,LJ012263,-6081.37
Food Standards Agency,Food Standards Agency,22/07/2010,Subsistence UK,Food Policy Strategy Hod,Capita Business Travel Ltd,LJ012263,-34750.66
Food Standards Agency,Food Standards Agency,22/07/2010,Subsistence UK,Food Policy Strategy Hod,Capita Business Travel Ltd,LJ012263,-38748.69
Food Standards Agency,Food Standards Agency,26/07/2010,Project Programme expenditure,Contaminants Policy & Strategy Unit,Veterinary Laboratories Agency,4000001368,74956.58
Food Standards Agency,Food Standards Agency,26/07/2010,Project Programme expenditure,Contaminants Policy & Strategy Unit,Veterinary Laboratories Agency,4000001395,74956.58
Food Standards Agency,Food Standards Agency,26/07/2010,Programme Evidence & Research Expenditure,Novel Food Unit,Rothamsted Research.,INV010631,68019
Food Standards Agency,Food Standards Agency,26/07/2010,Programme Evidence & Research Expenditure,Food Production Branch,Sac Commercial Ltd,10615929,24137
Food Standards Agency,Food Standards Agency,26/07/2010,Programme Evidence & Research Expenditure,Food Production Branch,Sac Commercial Ltd,10615929,18610
Food Standards Agency,Food Standards Agency,26/07/2010,Programme Evidence & Research Expenditure,Food Production Branch,Sac Commercial Ltd,10615929,4223.98
Food Standards Agency,Food Standards Agency,26/07/2010,Programme Evidence & Research Expenditure,Nutrition Research & Expert Advice,Kings College London,RGI91002905,68546
Food Standards Agency,Food Standards Agency,26/07/2010,Programme Evidence & Research Expenditure,Nutrition Research & Expert Advice,University Of Aberdeen,GRSI00024633,26071
Food Standards Agency,Food Standards Agency,26/07/2010,Programme Evidence & Research Expenditure,Nutrition Research & Expert Advice,University Of Aberdeen,GRSI00025581,55523
Food Standards Agency,Food Standards Agency,26/07/2010,Programme Evidence & Research Expenditure,Nutrition Research & Expert Advice,University Of Reading,95141,32923
Food Standards Agency,Food Standards Agency,26/07/2010,Programme Evidence & Research Expenditure,Allergens,University College Cork,16861,39144.74
Food Standards Agency,Food Standards Agency,27/07/2010,Programme Evidence & Research Expenditure,Nutrition Research & Expert Advice,Aberystwyth University,RG004144,115707
Food Standards Agency,Food Standards Agency,27/07/2010,Telecomms-data networks & call charges,Isted Service Delivery,Equanet,10557126,36300
Food Standards Agency,Food Standards Agency,27/07/2010,Telecomms-data networks & call charges,Isted Service Delivery,Equanet,10557126,6352.5
Food Standards Agency,Food Standards Agency,27/07/2010,Rent & management charges - Outside London,Security & Estates,D T Z,23546,81632.19
Food Standards Agency,Food Standards Agency,27/07/2010,Rates/contrib in lieu of rates,Security & Estates,London Borough Of Camden,65046225,40320
Food Standards Agency,Food Standards Agency,27/07/2010,Service charges,Security & Estates,D T Z,23546,47668.57
Food Standards Agency,Food Standards Agency,28/07/2010,IT Development projects,FSA Board,Glasgows,13775,26487.5
Food Standards Agency,Food Standards Agency,28/07/2010,IT Development projects,FSA Board,Glasgows,13775,4635.31
Food Standards Agency,Food Standards Agency,02/08/2010,Programme Evidence & Research Expenditure,Chemical Risk Assessment Unit,Imperial College,10077441,25400
Food Standards Agency,Food Standards Agency,02/08/2010,Programme Evidence & Research Expenditure,Food Production Branch,Campden Technology Limited,20013926,30004
Food Standards Agency,Food Standards Agency,02/08/2010,Programme Evidence & Research Expenditure,Food Production Branch,University Of Edinburgh,Z0019037,68865.6
Food Standards Agency,Food Standards Agency,02/08/2010,Programme Evidence & Research Expenditure,Food Production Branch,University Of Edinburgh,Z0019673,34781
Food Standards Agency,Food Standards Agency,02/08/2010,Programme Evidence & Research Expenditure,Nutrition Research & Expert Advice,University Of Reading,95147,44667
Food Standards Agency,Food Standards Agency,02/08/2010,Project Programme expenditure,Diet & Nutrition Surveys,Newcastle University,9100039409,26644
Food Standards Agency,Food Standards Agency,02/08/2010,Programme Evidence & Research Expenditure,Allergens,University Of Surrey,85002577,35661
Food Standards Agency,Food Standards Agency,02/08/2010,Programme Evidence & Research Expenditure,Allergens,University Of Surrey,85002664,34172
Food Standards Agency,Food Standards Agency,02/08/2010,Rates/contrib in lieu of rates,Security & Estates,London Borough Of Camden,68351658AUG,157283
Food Standards Agency,Food Standards Agency,03/08/2010,Project Programme expenditure,Delivery,Animal Health,5000000202,167801.96
Food Standards Agency,Food Standards Agency,03/08/2010,Project Programme expenditure,Delivery,C E F A S,8000180,67200
Food Standards Agency,Food Standards Agency,03/08/2010,Project Programme expenditure,Delivery,C E F A S,8000180,31000
Food Standards Agency,Food Standards Agency,03/08/2010,Project Programme expenditure,Delivery,C E F A S,8000180,20800
Food Standards Agency,Food Standards Agency,03/08/2010,Project Programme expenditure,Delivery,C E F A S,8000180,11760
Food Standards Agency,Food Standards Agency,03/08/2010,Project Programme expenditure,Delivery,C E F A S,8000180,5425
Food Standards Agency,Food Standards Agency,03/08/2010,Project Programme expenditure,Delivery,C E F A S,8000180,3640
Food Standards Agency,Food Standards Agency,03/08/2010,Project Programme expenditure,Delivery,C E F A S,8000216,73644.89
Food Standards Agency,Food Standards Agency,03/08/2010,Project Programme expenditure,Delivery,C E F A S,8000216,65661
Food Standards Agency,Food Standards Agency,03/08/2010,Project Programme expenditure,Delivery,C E F A S,8000216,12887.86
Food Standards Agency,Food Standards Agency,03/08/2010,Project Programme expenditure,Delivery,C E F A S,8000216,11490.68
Food Standards Agency,Food Standards Agency,03/08/2010,IT Software Licences,Isted Service Delivery,Messagelabs Ltd,9527217,22080
Food Standards Agency,Food Standards Agency,03/08/2010,IT Software Licences,Isted Service Delivery,Messagelabs Ltd,9527217,7680
Food Standards Agency,Food Standards Agency,03/08/2010,IT Software Licences,Isted Service Delivery,Messagelabs Ltd,9527217,7680
Food Standards Agency,Food Standards Agency,03/08/2010,IT Software Licences,Isted Service Delivery,Messagelabs Ltd,9527217,3864
Food Standards Agency,Food Standards Agency,03/08/2010,IT Software Licences,Isted Service Delivery,Messagelabs Ltd,9527217,1344
Food Standards Agency,Food Standards Agency,03/08/2010,IT Software Licences,Isted Service Delivery,Messagelabs Ltd,9527217,1344
Food Standards Agency,Food Standards Agency,06/08/2010,Project Programme expenditure,Analysis & Research Branch,Detica Ltd,GOA69511,22285.55
Food Standards Agency,Food Standards Agency,06/08/2010,Project Programme expenditure,Delivery,Coi,727160,15581.92
Food Standards Agency,Food Standards Agency,06/08/2010,Project Programme expenditure,Delivery,Coi,727160,7341.59
Food Standards Agency,Food Standards Agency,06/08/2010,Programme Evidence & Research Expenditure,Allergens,Coi,714583,23630.5
Food Standards Agency,Food Standards Agency,09/08/2010,Programme Evidence & Research Expenditure,Delivery,National Services Scotland,X0022880,33624.59
Food Standards Agency,Food Standards Agency,09/08/2010,Programme Evidence & Research Expenditure,Delivery,National Services Scotland,X0022880,5884.3
Food Standards Agency,Food Standards Agency,09/08/2010,Service charges,Security & Estates,G4s Integrated Services (Uk) Ltd,713380,25557.93
Food Standards Agency,Food Standards Agency,09/08/2010,Service charges,Security & Estates,G4s Integrated Services (Uk) Ltd,713380,14786.07
Food Standards Agency,Food Standards Agency,09/08/2010,Service charges,Security & Estates,G4s Integrated Services (Uk) Ltd,713380,2745.03
Food Standards Agency,Food Standards Agency,09/08/2010,Utilities,Security & Estates,E D F Energy,120,25056.81
Food Standards Agency,Food Standards Agency,09/08/2010,Utilities,Security & Estates,E D F Energy,120,4384.94
Food Standards Agency,Food Standards Agency,09/08/2010,Office machinery: hire,Security & Estates,G4s Integrated Services (Uk) Ltd,713380,3244
Food Standards Agency,Food Standards Agency,09/08/2010,Security,Security & Estates,G4s Integrated Services (Uk) Ltd,713380,21010.48
Food Standards Agency,Food Standards Agency,10/08/2010,Programme Evidence & Research Expenditure,Food Production Branch,University Of Nottingham,6974311,29224.88
Food Standards Agency,Food Standards Agency,10/08/2010,Programme Evidence & Research Expenditure,Food Production Branch,University Of Nottingham,6974366,-29224.88
Food Standards Agency,Food Standards Agency,12/08/2010,Project Programme expenditure,Delivery,C E F A S,8000295,73644.89
Food Standards Agency,Food Standards Agency,13/08/2010,Project Programme expenditure,Incidents & Food Fraud,Veterinary Laboratories Agency,4000001424,21986.68
Food Standards Agency,Food Standards Agency,13/08/2010,Project Programme expenditure,Contaminants Policy & Strategy Unit,Meteorological Office,I0069653,40685.25
Food Standards Agency,Food Standards Agency,13/08/2010,Project Programme expenditure,Foodborne Diseases Branch,T N S Uk Ltd,120594,70014.5
Food Standards Agency,Food Standards Agency,13/08/2010,Programme Evidence & Research Expenditure,Nutrition Research & Expert Advice,Newcastle University,9100040878,33215.88
Food Standards Agency,Food Standards Agency,16/08/2010,Programme Evidence & Research Expenditure,Food Production Branch,Heinrich Heine Universitat Dusseldorf,12-Mar-10,48073.62
Food Standards Agency,Food Standards Agency,16/08/2010,Project Programme expenditure,Nutrition Strategy,Glasgows,13787,55566.48
Food Standards Agency,Food Standards Agency,16/08/2010,Project Programme expenditure,Diet & Nutrition Surveys,Medical Research Council,90037726,478902
Food Standards Agency,Food Standards Agency,16/08/2010,Project Programme expenditure,Diet & Nutrition Surveys,Medical Research Council,90037726,83807.85
Food Standards Agency,Food Standards Agency,16/08/2010,Project Programme expenditure,Diet & Nutrition Surveys,Medical Research Council,90038492,478902
Food Standards Agency,Food Standards Agency,16/08/2010,Project Programme expenditure,Diet & Nutrition Surveys,Medical Research Council,90038493,-83807.85
Food Standards Agency,Food Standards Agency,16/08/2010,Project Programme expenditure,Diet & Nutrition Surveys,Medical Research Council,90038493,-478902
Food Standards Agency,Food Standards Agency,16/08/2010,Project Programme expenditure,Integrated Advice To Consumers,Flow Interactive Ltd,2884,32562.75
Food Standards Agency,Food Standards Agency,16/08/2010,Telecomms-data networks & call charges,Isted Service Delivery,Equanet,10583898,37817.45
Food Standards Agency,Food Standards Agency,16/08/2010,Telecomms-data networks & call charges,Isted Service Delivery,Equanet,10583898,6618.05
Food Standards Agency,Food Standards Agency,16/08/2010,Telecomms-data networks & call charges,Isted Service Delivery,Equanet,10583898,4486
Food Standards Agency,Food Standards Agency,16/08/2010,Telecomms-data networks & call charges,Isted Service Delivery,Equanet,10583898,3600
Food Standards Agency,Food Standards Agency,16/08/2010,Telecomms-data networks & call charges,Isted Service Delivery,Equanet,10583898,785.05
Food Standards Agency,Food Standards Agency,16/08/2010,Telecomms-data networks & call charges,Isted Service Delivery,Equanet,10583898,630
Food Standards Agency,Food Standards Agency,16/08/2010,Telecomms-data networks & call charges,Isted Service Delivery,Equanet,10583898,420
Food Standards Agency,Food Standards Agency,16/08/2010,Telecomms-data networks & call charges,Isted Service Delivery,Equanet,10583898,73.5
Food Standards Agency,Food Standards Agency,17/08/2010,Programme Evidence & Research Expenditure,Chemical Risk Assessment Unit,TNO Quality of Life,9031041219,28000
Food Standards Agency,Food Standards Agency,17/08/2010,Programme Evidence & Research Expenditure,Additives,University Of Leeds,90147068,25850
Food Standards Agency,Food Standards Agency,17/08/2010,Telecomms-data networks & call charges,Isted Service Delivery,Buying Solutions,SINMSD8013,33942
Food Standards Agency,Food Standards Agency,17/08/2010,Telecomms-data networks & call charges,Isted Service Delivery,Buying Solutions,SINMSD8013,5939.85
Food Standards Agency,Food Standards Agency,19/08/2010,ASD support services,Finance Director & Branch,DEFRA,192605,107776
Food Standards Agency,Food Standards Agency,19/08/2010,Telecomms-data networks & call charges,ISTED HoD Portfolio Management,Cable & Wireless Communications,UK100720103364,38613.25
Food Standards Agency,Food Standards Agency,19/08/2010,Telecomms-data networks & call charges,ISTED HoD Portfolio Management,Cable & Wireless Communications,UK100720103364,6757.32
Food Standards Agency,Food Standards Agency,25/08/2010,Telecomms-data networks & call charges,Isted Service Delivery,Equanet,10597305,41800
Food Standards Agency,Food Standards Agency,25/08/2010,Telecomms-data networks & call charges,Isted Service Delivery,Equanet,10597305,7315
Food Standards Agency,Food Standards Agency,26/08/2010,Rent & management charges - Outside London,Security & Estates,D T Z,24001,129271.48
Food Standards Agency,Food Standards Agency,26/08/2010,Rates/contrib in lieu of rates,Security & Estates,London Borough Of Camden,68351658SEPT,157283
Food Standards Agency,Food Standards Agency,01/09/2010,Project Programme expenditure,Web & Editorial,L B I Ltd,301409213,36058.75
Food Standards Agency,Food Standards Agency,01/09/2010,Programme Evidence & Research Expenditure,Nutrition Research & Expert Advice,Kings College London,RGI10110027,60224
Food Standards Agency,Food Standards Agency,01/09/2010,Programme Evidence & Research Expenditure,Standards & Authenticity,IFR Enterprises Ltd,CRN0000146,-47994.89
Food Standards Agency,Food Standards Agency,01/09/2010,Programme Evidence & Research Expenditure,Standards & Authenticity,IFR Enterprises Ltd,INV0002186,47994.89
Food Standards Agency,Food Standards Agency,02/09/2010,Project Programme expenditure,Delivery,Coi,727951,19441.34
Food Standards Agency,Food Standards Agency,02/09/2010,Project Programme expenditure,Delivery,Coi,727951,9295.25
Food Standards Agency,Food Standards Agency,02/09/2010,Project Programme expenditure,Delivery,Coi,727951,-17.56
Food Standards Agency,Food Standards Agency,03/09/2010,Telecomms-data networks & call charges,Isted Service Delivery,Buying Solutions,SINMSD8030,71606.8
Food Standards Agency,Food Standards Agency,03/09/2010,Telecomms-data networks & call charges,Isted Service Delivery,Buying Solutions,SINMSD8030,12531.19
Food Standards Agency,Food Standards Agency,03/09/2010,Mobile phone charges,Isted Service Delivery,Vodafone Ltd,56202338,26208.67
Food Standards Agency,Food Standards Agency,03/09/2010,Mobile phone charges,Isted Service Delivery,Vodafone Ltd,56202338,4586.52
Food Standards Agency,Food Standards Agency,03/09/2010,Mobile phone charges,Isted Service Delivery,Vodafone Ltd,56202338,1152.56
Food Standards Agency,Food Standards Agency,03/09/2010,Mobile phone charges,Isted Service Delivery,Vodafone Ltd,56202338,2.25
Food Standards Agency,Food Standards Agency,03/09/2010,Service charges,Security & Estates,G4s Integrated Services (Uk) Ltd,750567,25557.93
Food Standards Agency,Food Standards Agency,03/09/2010,Service charges,Security & Estates,G4s Integrated Services (Uk) Ltd,750567,14786.07
Food Standards Agency,Food Standards Agency,03/09/2010,Service charges,Security & Estates,G4s Integrated Services (Uk) Ltd,750567,2745.03
Food Standards Agency,Food Standards Agency,03/09/2010,Office machinery: hire,Security & Estates,G4s Integrated Services (Uk) Ltd,750567,3244
Food Standards Agency,Food Standards Agency,03/09/2010,Security,Security & Estates,G4s Integrated Services (Uk) Ltd,750567,21010.48
Food Standards Agency,Food Standards Agency,06/09/2010,Project Programme expenditure,Analysis & Research Branch,Economic & Social Research Council,2320,50000
Food Standards Agency,Food Standards Agency,06/09/2010,Programme Evidence & Research Expenditure,Chemical Risk Assessment Unit,University Of London,224094,96422.4
Food Standards Agency,Food Standards Agency,07/09/2010,Programme Evidence & Research Expenditure,Nutrition Research & Expert Advice,Cranfield University,1289072,41083
Food Standards Agency,Food Standards Agency,07/09/2010,Early Retirements,HR,London Pensions Fund Authority,233,204999.64
Food Standards Agency,Food Standards Agency,07/09/2010,Early Retirements,HR,London Pensions Fund Authority,233,204999.64
Food Standards Agency,Food Standards Agency,07/09/2010,Early Retirements,HR,London Pensions Fund Authority,233,35874.94
Food Standards Agency,Food Standards Agency,07/09/2010,Early Retirements,HR,London Pensions Fund Authority,233,-35874.94
Food Standards Agency,Food Standards Agency,07/09/2010,Early Retirements,HR,London Pensions Fund Authority,233,-204999.64
Food Standards Agency,Food Standards Agency,07/09/2010,Utilities,Security & Estates,E D F Energy,121,24439.92
Food Standards Agency,Food Standards Agency,07/09/2010,Utilities,Security & Estates,E D F Energy,121,4276.99
Food Standards Agency,Food Standards Agency,09/09/2010,Programme Evidence & Research Expenditure,Food Production Branch,Campden Bri,20015951,30006
Food Standards Agency,Food Standards Agency,10/09/2010,Project Programme expenditure,Web & Editorial,L B I Ltd,301409489,29978.82
Food Standards Agency,Food Standards Agency,10/09/2010,Project Programme expenditure,Web & Editorial,L B I Ltd,301409702,46660.25
Food Standards Agency,Food Standards Agency,10/09/2010,Project Programme expenditure,Food Production Branch,Agri-Food & Biosciences Institute,250003929,27123
Food Standards Agency,Food Standards Agency,10/09/2010,Programme Evidence & Research Expenditure,Nutrition Advice & Behaviour Change,University College London,Z502509,50000
Food Standards Agency,Food Standards Agency,14/09/2010,Programme Evidence & Research Expenditure,Food Production Branch,University Of Edinburgh,Z0019662,31289
Food Standards Agency,Food Standards Agency,14/09/2010,Project Programme expenditure,Diet & Nutrition Surveys,IFR Enterprises Ltd,INV0002357,58269
Food Standards Agency,Food Standards Agency,14/09/2010,Project Programme expenditure,Diet & Nutrition Surveys,IFR Enterprises Ltd,INV0002358,61407
Food Standards Agency,Food Standards Agency,14/09/2010,Conference and meeting facilities including accommodation,Food Policy Strategy Hod,Manchester Rubber Stamp Co Ltd,29617,22058.36
Food Standards Agency,Food Standards Agency,14/09/2010,Conference and meeting facilities including accommodation,Food Policy Strategy Hod,Manchester Rubber Stamp Co Ltd,29617,3860.21
Food Standards Agency,Food Standards Agency,14/09/2010,Conference and meeting facilities including accommodation,Food Policy Strategy Hod,Manchester Rubber Stamp Co Ltd,29617,0.01
Food Standards Agency,Food Standards Agency,14/09/2010,Telecomms-data networks & call charges,ISTED HoD Portfolio Management,Equanet,10601498,28030.5
Food Standards Agency,Food Standards Agency,14/09/2010,Telecomms-data networks & call charges,ISTED HoD Portfolio Management,Equanet,10601498,4905.34
Food Standards Agency,Food Standards Agency,15/09/2010,Programme Evidence & Research Expenditure,Chemical Risk Assessment Unit,Natural Environ Research Council,70000633,28041.93
Food Standards Agency,Food Standards Agency,15/09/2010,Programme Evidence & Research Expenditure,Chemical Risk Assessment Unit,Natural Environ Research Council,70000637,28041.93
Food Standards Agency,Food Standards Agency,15/09/2010,Project Programme expenditure,Diet & Nutrition Surveys,IFR Enterprises Ltd,INV0002216,28480
Food Standards Agency,Food Standards Agency,16/09/2010,IT Software Licences,Isted Strategy & Development,Dept For Communities & Local Gov,1800014870,34603
Food Standards Agency,Food Standards Agency,16/09/2010,IT Software Licences,Isted Strategy & Development,Dept For Communities & Local Gov,1800014870,6055.53
Food Standards Agency,Food Standards Agency,22/09/2010,Protective clothing and safety equipment,FSA Ops Delivery Planning Unit,Apparelmaster UK Ltd,35359,13.31
Food Standards Agency,Food Standards Agency,22/09/2010,Laundry,FSA Ops Delivery Planning Unit,Apparelmaster UK Ltd,35359,28866.72
Food Standards Agency,Food Standards Agency,22/09/2010,Laundry,FSA Ops Delivery Planning Unit,Apparelmaster UK Ltd,35359,5051.68
Food Standards Agency,Food Standards Agency,22/09/2010,Laundry,FSA Ops Delivery Planning Unit,Apparelmaster UK Ltd,35359,0.1
Food Standards Agency,Food Standards Agency,22/09/2010,Programme Evidence & Research Expenditure,Allergens,University College Cork,17073,30245.88
Food Standards Agency,Food Standards Agency,22/09/2010,Laundry,Internal Audit,Apparelmaster UK Ltd,35359,148.16
Food Standards Agency,Food Standards Agency,22/09/2010,Laundry,Internal Audit,Apparelmaster UK Ltd,35359,25.93
Food Standards Agency,Food Standards Agency,23/09/2010,Programme Evidence & Research Expenditure,Nutrition Research & Expert Advice,Friedrich Schiller Universitat Jena,106046,35489
Food Standards Agency,Food Standards Agency,23/09/2010,Programme Evidence & Research Expenditure,Nutrition Research & Expert Advice,Queens University Belfast,80000592,47763
Food Standards Agency,Food Standards Agency,27/09/2010,Rates/contrib in lieu of rates,Security & Estates,London Borough Of Camden,68351658OCT,157283
Food Standards Agency,Food Standards Agency,28/09/2010,Project Programme expenditure,Marketing,Coi,513126,-142944.19
Food Standards Agency,Food Standards Agency,28/09/2010,Project Programme expenditure,Marketing,Coi,713644,142944.19
Food Standards Agency,Food Standards Agency,28/09/2010,Programme Evidence & Research Expenditure,Nutrition Research & Expert Advice,University Of Aberdeen,GRSI00025992,41292
Food Standards Agency,Food Standards Agency,28/09/2010,Mobile phone charges,Isted Service Delivery,Vodafone Ltd,55190302,24795.6
Food Standards Agency,Food Standards Agency,28/09/2010,Mobile phone charges,Isted Service Delivery,Vodafone Ltd,55190302,4339.23
Food Standards Agency,Food Standards Agency,28/09/2010,Mobile phone charges,Isted Service Delivery,Vodafone Ltd,55190302,807.72
Food Standards Agency,Food Standards Agency,28/09/2010,Rent & management charges - AVH,Security & Estates,Dekay Management Ltd,1105,1243845.35
Food Standards Agency,Food Standards Agency,28/09/2010,Rent & management charges - AVH,Security & Estates,Dekay Management Ltd,1105,217672.94
Food Standards Agency,Food Standards Agency,30/09/2010,Project Programme expenditure,Contaminants Policy & Strategy Unit,Veterinary Laboratories Agency,4000001454,74956.58
Food Standards Agency,Food Standards Agency,30/09/2010,Project Programme expenditure,Contaminants Policy & Strategy Unit,Veterinary Laboratories Agency,4000001455,74956.58
Food Standards Agency,Food Standards Agency,30/09/2010,Programme Evidence & Research Expenditure,Microbiological Food Safety Branch,University Of Manchester,15032744,261061.8


































































































































































































































































































































































































































































































































































































































































































































































































































































































































































































































































































































































































































































































































































































































































































































































































































































































































































































































































































































































































































































































































































































































































































































































































































































































































































































































































































































































































































































































































































































































































































































































































































































































































































































































































































































































































































































































































































































































































































































































































































































































































































































































































































































































































































































































































































































































































































































































































































































































































































































































































































































































































































































































































































































































































































































































































































































































































































































































































































































































































































































































































































































































































































































































































































































































































































































































































































































































































































































































































































































































































































































































































































































































































































































































































































































































































































































































































































































































































































































































































































































































































































































































































































































































































































































































































































































































































































































































































































































































































































































































































































































































































































































































































































































































































































































































































































































































































































































































































































































































































































































































































































































































































































































































































































































































































































































































































































































































































































































































































































































































































































































































































































































































































































































































































































































































































































































































































































































































































































































































































































































































































































































































































































































































































































































































































































































































































































































































































































































































































































































































































































































































































































































































































































































































































































































































































































































































































































































































































































































































































































































































































































































































































































































































































































































































































































































































































































































































































































































































































































































































































































































































































































































































































































































































































































































































































































































































































































































































































































































































































































































































































































































































































































































































































































































































































































































































































































































































































































































































































































































































































































































































































































































































































































































































































































































































































































































































































































































































































































































































































































































































































































































































































































































































































































































































































































































































































































































































































































































































































































































































































































































































































































































































































































































































































































































































































































































































































































































































































































































































































































































































































































































































































































































































































































































































































































































































































































































































































































































































































































































































































































































































































































































































































































































































































































































































































































































































































































































































































































































































































































































































































































































































































































































































































































































































































































































































































































































































































































































































































































































































































































































































































































































































































































































































































































































































































































































































































































































































































































































































































































































































































































































































































































































































































































































































































































































































































































































































































































































































































































































































































































































































































































































































































































































































































































































































































































































































































































































































































































































































































































































































































































































































































































































































































































































































































































































































































































































































































































































































































































































































































































































































































































































































































































































































































































































































































































































































































































































































































































































































































































































































































































































































































































































































































































































































































































































































































































































































































































































































































































































































































































































































































































































































































































































































































































































































































































































































































































































































































































































































































































































































































































































































































































































































































































































































































































































































































































































































































































































































































































































































































































































































































































































































































































































































































































































































































































































































































































































































































































































































































































































































































































































































































































































































































































































































"Date Run: 05-OCT-10 07.44.01 AM --- GL Start Date : '01-APR-2010' , GL End Date : '30-SEP-2010' , Company Code : '17, 21'"
